Workbook

Sheet Worksheet
A1: TxDOT Manuals > | D1: Tex-121-E | E1: Tex-117-E
B2: TEXAS DEPARTMENT OF TRANSPORTATION | K2: 288
K3: 3
K4: tx121.xlsm::45505.684178
B5: SOIL-LIME TESTING: TEX-121-E
B6: TRIAXIAL COMPRESSION TEST Tex-117-E
I7: ="File Version: " & TEXT(MID(sn,SEARCH("::",sn,1)+2,20),"mm/dd/yy hh:mm:ss") -> File Version: 08/01/24 16:25:13
C8: SAMPLE ID: | G8: SAMPLED DATE:
C9: TEST NUMBER: | G9: LETTING DATE:
C10: SAMPLE STATUS: | G10: CONTROLLING CSJ:
C11: COUNTY: | G11: SPEC YEAR:
C12: SAMPLED BY: | G12: SPEC ITEM:
C13: SAMPLE LOCATION: | G13: SPECIAL PROVISION:
C14: MATERIAL CODE: | G14: GRADE:
C15: MATERIAL NAME:
C16: PRODUCER:
C17: AREA ENGINEER: | G17: PROJECT MANAGER:
C19: COURSE\LIFT: | E19: STATION: | H19: DIST. FROM CL:
B21: ="Performed By Tex-117-E:" & AutoMan -> Performed By Tex-117-E: | H21: <-- Select method of data collection.
B23: Triaxial Test Data Sheet
B24: Specimen Number: | D24: 1 | E24: 2 | F24: 3 | G24: 4 | H24: 5 | I24: 6 | J24: 7 | K24: 8
B25: Initial Height of Specimen, in.:
B26: Height of Stone 1, in.
B27: Height of Stone 2, in.
B28: New Height of Specimen, in.: | D28: =IF(LEFT(AutoMan,4)="Auto",IF('00 psi'!$D$6="","",'00 psi'!$D$6),IF(COUNTBLANK(D25:D27)=3,"",D25-D26-D27)) ->  | E28: =IF(LEFT(AutoMan,4)="Auto",IF('03 psi'!$D$6="","",'03 psi'!$D$6),IF(COUNTBLANK(E25:E27)=3,"",E25-E26-E27)) ->  | F28: =IF(LEFT(AutoMan,4)="Auto",IF('05 psi'!$D$6="","",'05 psi'!$D$6),IF(COUNTBLANK(F25:F27)=3,"",F25-F26-F27)) ->  | G28: =IF(LEFT(AutoMan,4)="Auto",IF('07 psi'!$D$6="","",'07 psi'!$D$6),IF(COUNTBLANK(G25:G27)=3,"",G25-G26-G27)) ->  | H28: =IF(LEFT(AutoMan,4)="Auto",IF('10 psi'!$D$6="","",'10 psi'!$D$6),IF(COUNTBLANK(H25:H27)=3,"",H25-H26-H27)) ->  | I28: =IF(LEFT(AutoMan,4)="Auto",IF('15 psi'!$D$6="","",'15 psi'!$D$6),IF(COUNTBLANK(I25:I27)=3,"",I25-I26-I27)) ->  | J28: =IF(LEFT(AutoMan,4)="Auto",IF('00 psi (2)'!$D$6="","",'00 psi (2)'!$D$6),IF(COUNTBLANK(J25:J27)=3,"",J25-J26-J27)) ->  | K28: =IF(LEFT(AutoMan,4)="Auto",IF('20 psi'!$D$6="","",'20 psi'!$D$6),IF(COUNTBLANK(K25:K27)=3,"",K25-K26-K27)) -> 
B29: Average Diameter, in.: | D29: =IF(D25=0,"",IF(LEFT(AutoMan,4)="Auto",'00 psi'!$B$6,+D30/PI())) ->  | E29: =IF(E25=0,"",IF(LEFT(AutoMan,4)="Auto",'03 psi'!$B$6,+E30/PI())) ->  | F29: =IF(F25=0,"",IF(LEFT(AutoMan,4)="Auto",'05 psi'!$B$6,+F30/PI())) ->  | G29: =IF(G25=0,"",IF(LEFT(AutoMan,4)="Auto",'07 psi'!$B$6,+G30/PI())) ->  | H29: =IF(H25=0,"",IF(LEFT(AutoMan,4)="Auto",'10 psi'!$B$6,+H30/PI())) ->  | I29: =IF(I25=0,"",IF(LEFT(AutoMan,4)="Auto",'15 psi'!$B$6,+I30/PI())) ->  | J29: =IF(J25=0,"",IF(LEFT(AutoMan,4)="Auto",'00 psi (2)'!B$6,+J30/PI())) ->  | K29: =IF(K25=0,"",IF(LEFT(AutoMan,4)="Auto",'20 psi'!$B$6,+K30/PI())) -> 
B30: Circumference, in.:
B31: Area, in.^2: | D31: =IF(D25=0,"",D30*(D29/4)) ->  | E31: =IF(E25=0,"",E30*(E29/4)) -> 
B32: Avg. Cross Sectional Area, in^2: | D32: =IF(D25=0,"",+D31/D47) ->  | E32: =IF(E25=0,"",+E31/E47) -> 
B33: Lateral Pressure, psi.:
B34: Calibration Factor: | D34: =IF('00 psi'!$B$16="","",'00 psi'!$B$16) ->  | E34: =IF('03 psi'!$B$16="","",'03 psi'!$B$16) ->  | F34: =IF('05 psi'!$B$16="","",'05 psi'!$B$16) ->  | G34: =IF('07 psi'!$B$16="","",'07 psi'!$B$16) ->  | H34: =IF('10 psi'!$B$16="","",'10 psi'!$B$16) ->  | I34: =IF('15 psi'!$B$16="","",'15 psi'!$B$16) ->  | J34: =IF('00 psi (2)'!$B$16="","",'00 psi (2)'!$B$16) ->  | K34: =IF('20 psi'!$B$16="","",'20 psi'!$B$16) -> 
B35: Excitation: | D35: =IF('00 psi'!$B$17="","",'00 psi'!$B$17) ->  | E35: =IF('03 psi'!$B$17="","",'03 psi'!$B$17) ->  | F35: =IF('05 psi'!$B$17="","",'05 psi'!$B$17) ->  | G35: =IF('07 psi'!$B$17="","",'07 psi'!$B$17) ->  | H35: =IF('10 psi'!$B$17="","",'10 psi'!$B$17) ->  | I35: =IF('15 psi'!$B$17="","",'15 psi'!$B$17) ->  | J35: =IF('00 psi (2)'!$B$17="","",'00 psi (2)'!$B$17) ->  | K35: =IF('20 psi'!$B$17="","",'20 psi'!$B$17) -> 
B36: Zero: | D36: =IF('00 psi'!$B$18="","",'00 psi'!$B$18) ->  | E36: =IF('03 psi'!$B$18="","",'03 psi'!$B$18) ->  | F36: =IF('05 psi'!$B$18="","",'05 psi'!$B$18) ->  | G36: =IF('07 psi'!$B$18="","",'07 psi'!$B$18) ->  | H36: =IF('10 psi'!$B$18="","",'10 psi'!$B$18) ->  | I36: =IF('15 psi'!$B$18="","",'15 psi'!$B$18) ->  | J36: =IF('00 psi (2)'!$B$18="","",'00 psi (2)'!$B$18) ->  | K36: =IF('20 psi'!$B$18="","",'20 psi'!$B$18) -> 
B37: Ring Factor, lbs./div
B38: Dead Load, lbs.:
B39: Piston Correction, lbs.: | D39: =IF('00 psi'!$B$7="","",'00 psi'!$B$7) ->  | E39: =IF('03 psi'!$B$7="","",'03 psi'!$B$7) ->  | F39: =IF('05 psi'!$B$7="","",'05 psi'!$B$7) ->  | G39: =IF('07 psi'!$B$7="","",'07 psi'!$B$7) ->  | H39: =IF('10 psi'!$B$7="","",'10 psi'!$B$7) ->  | I39: =IF('15 psi'!$B$7="","",'15 psi'!$B$7) ->  | J39: =IF('00 psi (2)'!$B$7="","",'00 psi (2)'!$B$7) ->  | K39: =IF('20 psi'!$B$7="","",'20 psi'!$B$7) -> 
B40: Max. Load Reading, div.: | D40: =IF('00 psi'!$B$25="","",'00 psi'!$B$25) ->  | E40: =IF('03 psi'!$B$25="","",'03 psi'!$B$25) ->  | F40: =IF('05 psi'!$B$25="","",'05 psi'!$B$25) ->  | G40: =IF('07 psi'!$B$25="","",'07 psi'!$B$25) ->  | H40: =IF('10 psi'!$B$25="","",'10 psi'!$B$25) ->  | I40: =IF('15 psi'!$B$25="","",'15 psi'!$B$25) ->  | J40: =IF('00 psi (2)'!$B$25="","",'00 psi (2)'!$B$25) ->  | K40: =IF('20 psi'!$B$25="","",'20 psi'!$B$25) -> 
B41: Max Load, lbs.: | D41: =IF(D40="","",(((D$40-D$36)*D$34)/D$35)+D$39) ->  | E41: =IF(E40="","",(((E$40-E$36)*E$34)/E$35)+E$39) -> 
B42: Deformation at Max Load, in.: | D42: =IF(D40="","",('00 psi'!$D$26-'00 psi'!$D$24)/'00 psi'!$D$16) ->  | E42: =IF(E40="","",('03 psi'!$D$26-'03 psi'!$D$24)/'03 psi'!$D$16) ->  | F42: =IF(F40="","",('05 psi'!$D$26-'05 psi'!$D$24)/'05 psi'!$D$16) ->  | G42: =IF(G40="","",('07 psi'!$D$26-'07 psi'!$D$24)/'07 psi'!$D$16) ->  | H42: =IF(H40="","",('10 psi'!$D$26-'10 psi'!$D$24)/'10 psi'!$D$16) ->  | I42: =IF(I40="","",('15 psi'!$D$26-'15 psi'!$D$24)/'15 psi'!$D$16) ->  | J42: =IF(J40="","",('00 psi (2)'!$D$26-'00 psi (2)'!$D$24)/'00 psi (2)'!$D$16) ->  | K42: =IF(K40="","",('20 psi'!$D$26-'20 psi'!$D$24)/'20 psi'!$D$16) -> 
B43: Max. Load Reading, div.
B44: Deformation at Max Load, in.
B45: Uncorrected Stress, psi.: | D45: =IF(D25=0,"",IF(LEFT(AutoMan,4)="Auto",(D41+D38)/D32,(((D43*D37)+D38)/D31))) -> 
B46: % Strain , in./in.: | D46: =IF(D25=0,"",IF(LEFT(AutoMan,4)="Auto",(D42/D28)*100,(D44/D28)*100)) -> 
B47: I-Strain, in./in.: | D47: =IF(D25=0,"",IF(LEFT(AutoMan,4)="Auto",1-(D42/D28),1-(D44/D28))) -> 
B48: Corrected Stress, psi.: | D48: =IF(D25=0,"",IF(LEFT(AutoMan,4)="Auto",(D47*D45),((D37*D43)+D38)/D32)) -> 
B50: Classification: | D50: =IF(ISERROR(Classification!B24),"",Classification!B24) ->  | J50: 00 psi | K50: 15 psi
B51: Internal Angle of Friction: | D51: =IF(ISERROR('Mohr Analysis'!H15),"",'Mohr Analysis'!H15) ->  | H51: Average Corrected Strength: | J51: =IF(ISERROR(AVERAGE(IF(D33:K33=0,D48:K48))),"",AVERAGE(IF(D33:K33=0,D48:K48))) ->  | K51: =IF(ISERROR(AVERAGE(IF(D33:K33=15,D48:K48))),"",AVERAGE(IF(D33:K33=15,D48:K48))) -> 
B52: Cohesion, psi: | D52: =IF(ISERROR('Mohr Analysis'!G16),"",'Mohr Analysis'!G16) ->  | H52: Grade: | J52: =IF(J51="","",IF(J51>=45,1,IF(J51<35,3,2))) ->  | K52: =IF(K51="","",IF(K51>=175,1,3)) -> 
B53: Correlation Factor: | D53: =IF(ISERROR('Mohr Analysis'!G17),"",'Mohr Analysis'!G17) ->  | H53: =IF(K52=1,"Meets Requirements for Grade" & IF(J52=1,"1",IF(J52=2,"2")),"Does Not Meet Any Grade Requirements") -> Does Not Meet Any Grade Requirements
B56: Remarks: | C56: =NOW() -> 2024-08-01T16:25:13.530
B61: Sample Method: | C61: Sampled By: | F61: Sampled Date:
B62: TX100
B64: TX400
B65: Test Method: | C65: Tested By: | F65: Tested Date:
B66: TX117
B67: Test Stamp Code: | E67: Omit Test: | F67: Completed Date: | G67: Reviewed By:
B69: Locked By: | C69: TxDOT: | D69: District: | E69: Area:
B71: Authorized By: | E71: Authorized Date:

Sheet Tex-113,4-E
A1: TxDOT Manuals > | D1: Tex-113-E
B2: TEXAS DEPARTMENT OF TRANSPORTATION
B3: =IF(Location="","",Location) -> 
J4: Tx113,4.xls::37445.433542
B5: SOIL-LIME TESTING: TEX-121-E | J5: 45
B6: Moisture-Density Relations of Base Material & Sand or Subgrade & Embankment Soils
B7: TEX-113-E or Tex-114-E
I8: ="Tx113,4 File Version: " & TEXT(MID(_sn113,SEARCH("::",_sn113,1)+2,20),"mm/dd/yy hh:mm:ss") -> Tx113,4 File Version: 07/08/02 10:24:18
C9: SAMPLE ID: | D9: =IF(SampleId="","",SampleId) ->  | E9: =IF(Location="","",Location) ->  | G9: SAMPLED DATE: | H9: =IF(SampledDate="","",SampledDate) ->  | I9: =IF(Location="","",Location) -> 
C10: TEST NUMBER: | D10: =IF(TestNumber="","",TestNumber) ->  | G10: LETTING DATE: | H10: =IF(LettingDate="","",LettingDate) -> 
C11: SAMPLE STATUS: | D11: =IF(Status="","",Status) ->  | G11: CONTROLLING CSJ: | H11: =IF(CCSJ="","",CCSJ) -> 
C12: COUNTY: | D12: =IF(County="","",County) ->  | G12: SPEC YEAR: | H12: =IF(SpecYear="","",SpecYear) -> 
C13: SAMPLED BY: | D13: =IF(SampledBy="","",SampledBy) ->  | G13: SPEC ITEM: | H13: =IF(SpecItem="","",SpecItem) -> 
C14: SAMPLE LOCATION: | D14: =IF(SampleLocation="","",SampleLocation) ->  | G14: SPECIAL PROVISION: | H14: =IF(SpecialProvision="","",SpecialProvision) -> 
C15: MATERIAL CODE: | D15: =IF(Material="","",Material) ->  | G15: GRADE: | H15: =IF(Grade="","",Grade) -> 
C16: MATERIAL NAME: | D16: =IF(matl_nm="","",matl_nm) -> 
C17: PRODUCER: | D17: =IF(Producer="","",Producer) ->  | E17: =IF(Location="","",Location) ->  | F17: =IF(Location="","",Location) ->  | G17: =IF(Location="","",Location) -> 
C18: AREA ENGINEER: | D18: =IF(AreaEngineer="","",AreaEngineer) ->  | E18: =IF(Location="","",Location) ->  | G18: PROJECT MANAGER: | H18: =IF(ProjectManager="","",ProjectManager) -> 
C20: COURSE\LIFT: | D20: =IF(CourseLift="","",CourseLift) ->  | E20: STATION: | F20: =IF(Station="","",Station) ->  | H20: DIST. FROM CL: | I20: =IF(DistFromCL="","",DistFromCL) -> 
B21: Moisture-Density Work Sheet
B22: Percent of Lime, (%)
B23: Oven Dry Weight, (g):
B24: Weight of Pycnometer & Water, (g):
B25: Weight of Aggr., Pycn.& Water, (g):
B26: Specific Gravity (Apparent): | E26: =IF(ISERROR(E23/(E23+E24-E25)),"",E23/(E23+E24-E25)) -> 
B28: Hygroscopic Moisture, (%):
E30: 1 | F30: 2 | G30: 3 | H30: 4
B31: Percent Water Content, (%):
B32: Percent Lime, (%): | E32: =IF(OR(E31="",PerLime=""),"",PerLime) ->  | F32: =IF(OR(E31="",PerLime=""),"",PerLime) ->  | G32: =IF(OR(E31="",PerLime=""),"",PerLime) ->  | H32: =IF(OR(E31="",PerLime=""),"",PerLime) -> 
B33: Mass Material, (lb):
B34: Mass Water Added, (lb): | E34: =IF(AND(E31="",E33=""),"",(E31/100)*E33) ->  | F34: =IF(AND(F31="",F33=""),"",(F31/100)*F33) ->  | G34: =IF(AND(G31="",G33=""),"",(G31/100)*G33) ->  | H34: =IF(AND(H31="",H33=""),"",(H31/100)*H33) -> 
B35: Mass Lime Added, (lb): | E35: =IF(AND(E32="",E33="",E28=""),"",IF(ISERROR((E32/100)*(E33-(E33*$E$28))),"",(E32/100)*(E33-(E33*$E$28)))) ->  | F35: =IF(AND(F32="",F33="",E28=""),"",IF(ISERROR((F32/100)*(F33-(F33*$E$28))),"",(F32/100)*(F33-(F33*$E$28)))) ->  | G35: =IF(AND(G32="",G33="",E28=""),"",IF(ISERROR((G32/100)*(G33-(G33*$E$28))),"",(G32/100)*(G33-(G33*$E$28)))) ->  | H35: =IF(AND(H32="",H33="",E28=""),"",IF(ISERROR((H32/100)*(H33-(H33*$E$28))),"",(H32/100)*(H33-(H33*$E$28)))) -> 
B36: Wet Mass Specimen & Mold, (lb):
B37: Tare Mass Mold, (lb):
B38: Wet Mass Specimen, (lb): | E38: =IF(AND(E36="",E37=""),"",E36-E37) ->  | F38: =IF(AND(F36="",F37=""),"",F36-F37) ->  | G38: =IF(AND(G36="",G37=""),"",G36-G37) ->  | H38: =IF(AND(H36="",H37=""),"",H36-H37) -> 
B39: Height of Specimen, (in.):
B40: Volume per Linear mm., (in.):
B41: Volume of Specimen, (ft^3): | E41: =IF(AND(E40="",E39=""),"",E40*E39) ->  | F41: =IF(AND(F40="",F39=""),"",F40*F39) ->  | G41: =IF(AND(G40="",G39=""),"",G40*G39) ->  | H41: =IF(AND(H40="",H39=""),"",H40*H39) -> 
B42: Wet Density of Specimen, (lb): | E42: =IF(ISERROR(E38/E41),"",E38/E41) ->  | F42: =IF(ISERROR(F38/F41),"",F38/F41) ->  | G42: =IF(ISERROR(G38/G41),"",G38/G41) ->  | H42: =IF(ISERROR(H38/H41),"",H38/H41) -> 
B43: Wet Mass of Pan & Specimen, (lb):
B44: Dry Mass Pan & Specimen, (lb):
B45: Tare Mass Pan, (lb):
B46: Dry Mass Material , (lb): | E46: =IF(AND(E44="",E45=""),"",E44-E45) ->  | F46: =IF(AND(F44="",F45=""),"",F44-F45) ->  | G46: =IF(AND(G44="",G45=""),"",G44-G45) ->  | H46: =IF(AND(H44="",H45=""),"",H44-H45) -> 
B47: Mass Water, (lb): | E47: =IF(AND(E43="",E44=""),"",E43-E44) ->  | F47: =IF(AND(F43="",F44=""),"",F43-F44) ->  | G47: =IF(AND(G43="",G44=""),"",G43-G44) ->  | H47: =IF(AND(H43="",H44=""),"",H43-H44) -> 
B48: Percent Water on Total , (%): | E48: =IF(ISERROR((E47/E46)*100),"",(E47/E46)*100) ->  | F48: =IF(ISERROR((F47/F46)*100),"",(F47/F46)*100) ->  | G48: =IF(ISERROR((G47/G46)*100),"",(G47/G46)*100) ->  | H48: =IF(ISERROR((H47/H46)*100),"",(H47/H46)*100) -> 
B49: Dry Density, (pcf): | E49: =IF(ISERROR(E42/(1+(E48/100))),"",E42/(1+(E48/100))) ->  | F49: =IF(ISERROR(F42/(1+(F48/100))),"",F42/(1+(F48/100))) ->  | G49: =IF(ISERROR(G42/(1+(G48/100))),"",G42/(1+(G48/100))) ->  | H49: =IF(ISERROR(H42/(1+(H48/100))),"",H42/(1+(H48/100))) -> 
B50: Estimated Dry Density, (pcf): | E50: =IF(ISERROR(E42/(1+(E31/100))),"",E42/(1+(E31/100))) ->  | F50: =IF(ISERROR(F42/(1+(F31/100))),"",F42/(1+(F31/100))) ->  | G50: =IF(ISERROR(G42/(1+(G31/100))),"",G42/(1+(G31/100))) ->  | H50: =IF(ISERROR(H42/(1+(H31/100))),"",H42/(1+(H31/100))) -> 
B51: Max Density, (pcf): | E51: =IF(AND(E24="",E25="",H47=""),"",IF(AND(E24>0,E25>0),Reference!B22,IF(H47>0,Reference!B22,"Need SG"))) -> 
B52: Max Density, (kg/m3): | E52: =IF(ISERROR(E51*(0.4536/0.02832)),"",E51*(0.4536/0.02832)) -> 
B53: Optimum Moisture, (%): | E53: =IF(ISERROR(Reference!B23),"",Reference!B23) -> 
B55: Remarks: | C55: =NOW() -> 2024-08-01T16:25:13.530
B58: Test Method: | C58: Tested By: | F58: Date:
B59: TX113
B61: TX114

Sheet Reference (hidden)
A1: m1 | B1: =(B12-B11)/(C12-C11) -> 
A2: b1 | B2: =B11-B1*C11 ->  | C2: X-Peak | D2: =(B4-B2)/(B1-B3) -> 
A3: m2 | B3: =IF(AND(B13>0,'Tex-113,4-E'!H47=0),B1*-1,(B14-B13)/(C14-C13)) ->  | C3: Y-Peak | D3: =B1*D2+B2 -> 
A4: b2 | B4: =B13-C13*B3 -> 
A10: N | B10: Y | C10: X | D10: X^2
A11: 1 | B11: ='Tex-113,4-E'!E49 ->  | C11: ='Tex-113,4-E'!E48 ->  | D11: =C11^2 -> 
A12: 2 | B12: ='Tex-113,4-E'!F49 ->  | C12: ='Tex-113,4-E'!F48 -> 
A13: 3 | B13: ='Tex-113,4-E'!G49 ->  | C13: ='Tex-113,4-E'!G48 -> 
A14: 4 | B14: =IF(AND(B13>0,'Tex-113,4-E'!H47=0),D3,'Tex-113,4-E'!H49) ->  | C14: =IF(AND(C13>0,'Tex-113,4-E'!H47=0),D2,'Tex-113,4-E'!H48) -> 
A15: 5 | B15: =D3 ->  | C15: =$D$2 -> 
A16: 6 | B16: =D3 ->  | C16: =$D$2 -> 
A17: 7 | B17: =D3 ->  | C17: =$D$2 -> 
A18: 8 | B18: =D3 ->  | C18: =D2 -> 
A19: SUM | B19: =SUM(B13:B17) ->  | C19: =SUM(C13:C17) ->  | D19: =SUM(D11:D17) -> 
A22: MAX DEN | B22: =B27*B23^2+B26*B23+B25 -> 
A23: MAX W | B23: =-B26/(2*B27) -> 
A25: Ao | B25: =INDEX(LINEST($B$11:$B$14,$C$11:$D$14),3) -> 
A26: A1 | B26: =INDEX(LINEST($B$11:$B$14,$C$11:$D$14),2) ->  | D26: SG | E26: =IF(AND('Tex-113,4-E'!E25>0,'Tex-113,4-E'!E24>0),'Tex-113,4-E'!E26,"") -> 
A27: A2 | B27: =INDEX(LINEST($B$11:$B$14,$C$11:$D$14),1) -> 
A29: W | B29: Dry Density | C29: ZAV
A30: =IF('Tex-113,4-E'!H48>0,'Tex-113,4-E'!H48+8,'Tex-113,4-E'!G48+8) ->  | B30: =$B$25+$B$26*A30+$B$27*A30^2 ->  | C30: =($E$26*62.4)/(1+(A30/100)*$E$26) -> 
A31: =A30-0.2 -> 
A32: =A31-0.2 -> 
B94: =$B$25+$B$26*A94+$B$27*A94^2 ->  | C94: =($E$26*62.4)/(1+(A94/100)*$E$26) -> 
A96: =A95-0.2 -> 
B158: =$B$25+$B$26*A158+$B$27*A158^2 ->  | C158: =($E$26*62.4)/(1+(A158/100)*$E$26) -> 
A160: =A159-0.2 -> 

Sheet 00 psi (hidden)
A1: [HEADER] | D1: File Name:
A2: Project: | B2: Project1
A3: Date: | B3: 37036 | C3: Time: | D3: 0.4027662037
A4: Boring: | B4: Boring1 | C4: Sample: | D4: 6
A5: Specimen: | B5: 6 | C5: Depth (ft): | D5: 10
A6: Diameter (inch): | C6: Height (inch):
A7: Piston Correction (lbs):
A8: Comments:
A10: [SENSORS]
A11: Name | B11: External Load Cell | C11: Cell Pressure | D11: Load Frame Encoder
A12: ID | B12: LC54032 | C12: PS9170013 | D12: N/A
A13: Module | B13: Load Frame Adc | C13: Load Frame Adc | D13: N/A
A14: Channel | B14: 1 | C14: 3 | D14: N/A
A15: Unit | B15: lbs | C15: psi | D15: inch
A16: Cal. Factor | C16: 10000
A17: Excitation | C17: 10.03 | D17: N/A
A18: Zero | C18: -0.000172 | D18: N/A
A19: Min. Reading | B19: -10000 | C19: -14 | D19: 0
A20: Max. Reading | B20: 10000 | C20: 98 | D20: 3.5
A22: [SHEAR]
A23: Time | B23: External Load Cell | C23: Cell Pressure | D23: Platen Position
E24: < Zero Value Platen Position
E25: < Minimum Value Load Cell
E26: < Minimum Value Platen Position

Sheet 03 psi (hidden)
A1: [HEADER] | D1: File Name:
A2: Project: | B2: Project1
A3: Date: | B3: 37036 | C3: Time: | D3: 0.4203125
A4: Boring: | B4: Boring1 | C4: Sample: | D4: 3
A5: Specimen: | B5: 3 | C5: Depth (ft): | D5: 10
A6: Diameter (inch): | C6: Height (inch):
A7: Piston Correction (lbs):
A8: Comments:
A10: [SENSORS]
A11: Name | B11: External Load Cell | C11: Cell Pressure | D11: Load Frame Encoder
A12: ID | B12: LC54032 | C12: PS9170013 | D12: N/A
A13: Module | B13: Load Frame Adc | C13: Load Frame Adc | D13: N/A
A14: Channel | B14: 1 | C14: 3 | D14: N/A
A15: Unit | B15: lbs | C15: psi | D15: inch
A16: Cal. Factor | C16: 10000
A17: Excitation | C17: 10.03 | D17: N/A
A18: Zero | C18: -0.000172 | D18: N/A
A19: Min. Reading | B19: -10000 | C19: -14 | D19: 0
A20: Max. Reading | B20: 10000 | C20: 98 | D20: 3.5
A22: [SHEAR]
A23: Time | B23: External Load Cell | C23: Cell Pressure | D23: Platen Position
E24: < Zero Value Platen Position
E25: < Minimum Value Load Cell
E26: < Minimum Value Platen Position

Sheet 05 psi (hidden)
A1: [HEADER] | D1: File Name:
A2: Project: | B2: Project1
A3: Date: | B3: 37036 | C3: Time: | D3: 0.4273611111
A4: Boring: | B4: Boring1 | C4: Sample: | D4: 1
A5: Specimen: | B5: 1 | C5: Depth (ft): | D5: 10
A6: Diameter (inch): | C6: Height (inch):
A7: Piston Correction (lbs):
A8: Comments:
A10: [SENSORS]
A11: Name | B11: External Load Cell | C11: Cell Pressure | D11: Load Frame Encoder
A12: ID | B12: LC54032 | C12: PS9170013 | D12: N/A
A13: Module | B13: Load Frame Adc | C13: Load Frame Adc | D13: N/A
A14: Channel | B14: 1 | C14: 3 | D14: N/A
A15: Unit | B15: lbs | C15: psi | D15: inch
A16: Cal. Factor | C16: 10000
A17: Excitation | C17: 10.03 | D17: N/A
A18: Zero | C18: -0.000172 | D18: N/A
A19: Min. Reading | B19: -10000 | C19: -14 | D19: 0
A20: Max. Reading | B20: 10000 | C20: 98 | D20: 3.5
A22: [SHEAR]
A23: Time | B23: External Load Cell | C23: Cell Pressure | D23: Platen Position
E24: < Zero Value Platen Position
E25: < Minimum Value Load Cell
E26: < Minimum Value Platen Position

Sheet 07 psi (hidden)
A1: [HEADER] | D1: File Name:
A2: Project: | B2: Project1
A3: Date: | B3: 37440 | C3: Time: | D3: 0.4750925926
A4: Boring: | B4: Boring1 | C4: Sample: | D4: 4
A5: Specimen: | B5: 4 | C5: Depth (ft): | D5: 10
A6: Diameter (inch): | C6: Height (inch):
A7: Piston Correction (lbs):
A8: Comments:
A10: [SENSORS]
A11: Name | B11: External Load Cell | C11: Cell Pressure | D11: Load Frame Encoder
A12: ID | B12: lc54032 | C12: PS9170013 | D12: N/A
A13: Module | B13: Load Frame Adc | C13: Load Frame Adc | D13: N/A
A14: Channel | B14: 1 | C14: 3 | D14: N/A
A15: Unit | B15: lbs | C15: psi | D15: inch
A16: Cal. Factor | C16: 10000
A17: Excitation | C17: 10.03 | D17: N/A
A18: Zero | C18: -0.000139 | D18: N/A
A19: Min. Reading | B19: -10000 | C19: -14 | D19: 0
A20: Max. Reading | B20: 10000 | C20: 98 | D20: 3.5
A22: [SHEAR]
A23: Time | B23: External Load Cell | C23: Cell Pressure | D23: Platen Position
E24: < Zero Value Platen Position
E25: < Minimum Value Load Cell
E26: < Minimum Value Platen Position

Sheet 10 psi (hidden)
A1: [HEADER] | D1: File Name:
A2: Project: | B2: Project1
A3: Date: | B3: 37036 | C3: Time: | D3: 0.4406134259
A4: Boring: | B4: Boring1 | C4: Sample: | D4: 5
A5: Specimen: | B5: 5 | C5: Depth (ft): | D5: 10
A6: Diameter (inch): | C6: Height (inch):
A7: Piston Correction (lbs):
A8: Comments:
A10: [SENSORS]
A11: Name | B11: External Load Cell | C11: Cell Pressure | D11: Load Frame Encoder
A12: ID | B12: LC54032 | C12: PS9170013 | D12: N/A
A13: Module | B13: Load Frame Adc | C13: Load Frame Adc | D13: N/A
A14: Channel | B14: 1 | C14: 3 | D14: N/A
A15: Unit | B15: lbs | C15: psi | D15: inch
A16: Cal. Factor | C16: 10000
A17: Excitation | C17: 10.03 | D17: N/A
A18: Zero | C18: -0.000172 | D18: N/A
A19: Min. Reading | B19: -10000 | C19: -14 | D19: 0
A20: Max. Reading | B20: 10000 | C20: 98 | D20: 3.5
A22: [SHEAR]
A23: Time | B23: External Load Cell | C23: Cell Pressure | D23: Platen Position
E24: < Zero Value Platen Position
E25: < Minimum Value Load Cell
E26: < Minimum Value Platen Position

Sheet 15 psi (hidden)
A1: [HEADER] | D1: File Name:
A2: Project: | B2: Project1
A3: Date: | B3: 37036 | C3: Time: | D3: 0.4115856481
A4: Boring: | B4: Boring1 | C4: Sample: | D4: 2
A5: Specimen: | B5: 2 | C5: Depth (ft): | D5: 10
A6: Diameter (inch): | C6: Height (inch):
A7: Piston Correction (lbs):
A8: Comments:
A10: [SENSORS]
A11: Name | B11: External Load Cell | C11: Cell Pressure | D11: Load Frame Encoder
A12: ID | B12: LC54032 | C12: PS9170013 | D12: N/A
A13: Module | B13: Load Frame Adc | C13: Load Frame Adc | D13: N/A
A14: Channel | B14: 1 | C14: 3 | D14: N/A
A15: Unit | B15: lbs | C15: psi | D15: inch
A16: Cal. Factor | C16: 10000
A17: Excitation | C17: 10.03 | D17: N/A
A18: Zero | C18: -0.000172 | D18: N/A
A19: Min. Reading | B19: -10000 | C19: -14 | D19: 0
A20: Max. Reading | B20: 10000 | C20: 98 | D20: 3.5
A22: [SHEAR]
A23: Time | B23: External Load Cell | C23: Cell Pressure | D23: Platen Position
E24: < Zero Value Platen Position
E25: < Minimum Value Load Cell
E26: < Minimum Value Platen Position

Sheet 00 psi (2) (hidden)
A1: [HEADER] | D1: File Name:
A2: Project: | B2: Project1
A3: Date: | B3: 37036 | C3: Time: | D3: 0.4001388889
A4: Boring: | B4: Boring1 | C4: Sample: | D4: 6
A5: Specimen: | B5: 6 | C5: Depth (ft): | D5: 10
A6: Diameter (inch): | C6: Height (inch):
A7: Piston Correction (lbs):
A8: Comments:
A10: [SENSORS]
A11: Name | B11: External Load Cell | C11: Cell Pressure | D11: Load Frame Encoder
A12: ID | B12: LC54032 | C12: PS9170013 | D12: N/A
A13: Module | B13: Load Frame Adc | C13: Load Frame Adc | D13: N/A
A14: Channel | B14: 1 | C14: 3 | D14: N/A
A15: Unit | B15: lbs | C15: psi | D15: inch
A16: Cal. Factor | C16: 10000
A17: Excitation | C17: 10.03 | D17: N/A
A18: Zero | C18: -0.000172 | D18: N/A
A19: Min. Reading | B19: -10000 | C19: -14 | D19: 0
A20: Max. Reading | B20: 10000 | C20: 98 | D20: 3.5
A22: [SHEAR]
A23: Time | B23: External Load Cell | C23: Cell Pressure | D23: Platen Position
E24: < Zero Value Platen Position
E25: < Minimum Value Load Cell
E26: < Minimum Value Platen Position

Sheet 20 psi (hidden)
A1: [HEADER] | D1: File Name:
A2: Project:
A3: Date: | C3: Time:
A4: Boring: | C4: Sample:
A5: Specimen: | C5: Depth (ft):
A6: Diameter (inch): | C6: Height (inch):
A7: Piston Correction (lbs):
A8: Comments:
A10: [SENSORS]
A11: Name | B11: External Load Cell | C11: Cell Pressure | D11: Load Frame Encoder
A12: ID
A13: Module
A14: Channel
A15: Unit
A16: Cal. Factor
A17: Excitation
A18: Zero
A19: Min. Reading
A20: Max. Reading
A22: [SHEAR]
A23: Time | B23: External Load Cell | C23: Cell Pressure | D23: Platen Position
E24: < Zero Value Platen Position
E25: < Minimum Value Load Cell
E26: < Minimum Value Platen Position

Sheet Summary
B33: Classification | E33: =#REF! ->  | G33: Failure Stresses
B34: Internal Angle of Friction | E34: =#REF! ->  | G34: Lateral Stress (psi) | I34: Normal Stress (psi) | K34: Shear Stress (psi)
B35: Cohesion (psi) | E35: =#REF! ->  | G35: ='Mohr Analysis'!B5 -> 0 | I35: ='Mohr Analysis'!F5 ->  | K35: ='Mohr Analysis'!G5 -> 
G36: ='Mohr Analysis'!B6 -> 0 | I36: ='Mohr Analysis'!F6 ->  | K36: ='Mohr Analysis'!G6 -> 
G37: ='Mohr Analysis'!B7 -> 0 | I37: ='Mohr Analysis'!F7 ->  | K37: ='Mohr Analysis'!G7 -> 
G38: ='Mohr Analysis'!B8 -> 0 | I38: ='Mohr Analysis'!F8 ->  | K38: ='Mohr Analysis'!G8 -> 
G39: ='Mohr Analysis'!B9 -> 0 | I39: ='Mohr Analysis'!F9 ->  | K39: ='Mohr Analysis'!G9 -> 
G40: ='Mohr Analysis'!B10 -> 0 | I40: ='Mohr Analysis'!F10 ->  | K40: ='Mohr Analysis'!G10 -> 
G41: ='Mohr Analysis'!B11 -> 0 | I41: ='Mohr Analysis'!F11 ->  | K41: ='Mohr Analysis'!G11 -> 
G42: ='Mohr Analysis'!B12 -> 0 | I42: ='Mohr Analysis'!F12 ->  | K42: ='Mohr Analysis'!G12 -> 

Sheet Mohr Analysis
C1: Mohr's Circle Analysis | I1: Standard:
L2: s3=5 | N2: s3=10 | P2: s3=15
F3: Failure Strengths | J3: 2ai | K3: 2ai | L3: tf | M3: t max | N3: tf | O3: t max | P3: tf | Q3: t max | T3: s | U3: t
B4: s3 | C4: s1 | D4: Max Shear Stress | E4: Center Stress | F4: Normal Stress | G4: Shear Strength | I4: Class 1 | J4: 145 | K4: =J4*(PI()/180) -> 2.5307 | R4: =IF(OR(AND(J13>M5,J14>O5,J15>Q5)),1,0) ->  | S4: =IF(R4=1,145,1000) ->  | T4: =D5*COS($S$11)+E5 ->  | U4: =D5*SIN($S$11) -> 
A5: 1 | B5: =Worksheet!D33 -> 0 | C5: =Worksheet!D48 ->  | D5: =(C5-B5)/2 ->  | E5: =(C5+B5)/2 ->  | F5: =D5*COS($B$16)+E5 ->  | G5: =D5*SIN($B$16) ->  | I5: Class 2 | J5: 140 | K5: 2.4435 | L5: 15 | M5: =L5/SIN(PI()-K5) -> 23.3369434 | N5: 23.4 | O5: =N5/SIN(PI()-K5) -> 36.4056317 | P5: 30 | Q5: =P5/SIN(PI()-K5) -> 46.67388679 | R5: =IF(OR(AND(M5>=J13,J13>M6),AND(O5>=J14,J14>O6),AND(Q5>=J15,J15>Q6)),1,0) ->  | S5: =IF(R5=1,140,1000) -> 
A6: 2 | B6: =Worksheet!E33 -> 0 | C6: =Worksheet!E48 ->  | F6: =D6*COS($B$16)+E6 ->  | I6: Class 3 | J6: 135 | K6: 2.3562 | L6: 11.4 | M6: =L6/SIN(PI()-K6) -> 16.12212344 | N6: 17.8 | O6: =N6/SIN(PI()-K6) -> 25.17314011 | P6: 22.3 | Q6: =P6/SIN(PI()-K6) -> 31.5371362 | R6: =IF(OR(AND(M6>=J13,J13>M7),AND(O6>=J14,J14>O7),AND(Q6>=J15,J15>Q7)),1,0) ->  | S6: =IF(R6=1,135,1000) -> 
A7: 3 | B7: =Worksheet!F33 -> 0 | C7: =Worksheet!F48 ->  | I7: Class 4 | J7: 125 | K7: 2.1817 | L7: 6.2 | M7: =L7/SIN(PI()-K7) -> 7.569006157 | N7: 11.3 | O7: =N7/SIN(PI()-K7) -> 13.79512412 | P7: 15.4 | Q7: =P7/SIN(PI()-K7) -> 18.80043465 | R7: =IF(OR(AND(M7>=J13),AND(O7>=J14,J14>O8),AND(Q7>=J15,J15>Q8)),1,0) ->  | S7: =IF(R7=1,125,1000) -> 
A8: 4 | B8: =Worksheet!G33 -> 0 | C8: =Worksheet!G48 ->  | I8: Class 5 | J8: 120 | K8: 2.0944 | N8: 6.3 | O8: =N8/SIN(PI()-K8) -> 7.274633962 | P8: 7.9 | Q8: =P8/SIN(PI()-K8) -> 9.122160047 | R8: =IF(OR(AND(O8>=J14,J14>O9),AND(Q8>=J15,J15>Q9)),1,0) ->  | S8: =IF(R8=1,120,1000) -> 
A9: 5 | B9: =Worksheet!H33 -> 0 | C9: =Worksheet!H48 ->  | I9: Class 6 | J9: 110 | K9: 1.9199 | N9: 3.8 | O9: =N9/SIN(PI()-K9) -> 4.043931209 | P9: 4.7 | Q9: =P9/SIN(PI()-K9) -> 5.00170439 | R9: =IF(AND(J14<O9,J15<Q9),1,0) ->  | S9: =IF(R9=1,110,1000) -> 
A10: 6 | B10: =Worksheet!I33 -> 0 | C10: =Worksheet!I48 ->  | R10: 2ai= | S10: =MIN(S4:S9) -> 
A11: 7 | B11: =Worksheet!J33 -> 0 | C11: =Worksheet!J48 ->  | I11: Calculation of | J11: 2a: | S11: =S10*(PI()/180) -> 
A12: 8 | B12: =Worksheet!K33 -> 0 | C12: =Worksheet!K48 ->  | N12: 5 | O12: 6 | P12: 7
I13: t max @ 5 | J13: =VLOOKUP(K13,B5:D12,3,0) ->  | K13: 5 | M13: m= | N13: =IF(AND(U8>0,U9=0),INDEX(LINEST(U4:U8,T4:T8),1),0) ->  | O13: =IF(AND(U9>0,U10=0),INDEX(LINEST(U4:U9,T4:T9),1),0) ->  | P13: =IF(U10>0,INDEX(LINEST(U4:U10,T4:T10),1),0) ->  | Q13: =MAX(N13:P13) -> 
D14: 5 | E14: 6 | F14: 7 | G14: Linear Regression | I14: t max @10 | J14: =VLOOKUP(K14,B5:D12,3,0) ->  | K14: 10 | M14: b= | N14: =IF(AND(T8>0,T9=0),INDEX(LINEST(U4:U8,T4:T8),2),0) ->  | O14: =IF(AND(T9>0,T10=0),INDEX(LINEST(U4:U9,T4:T9),2),0) ->  | P14: =IF(T10>0,INDEX(LINEST(U4:U10,T4:T10),2),0) ->  | Q14: =MAX(N14:P14) -> 
A15: 2a= | B15: =Q16 ->  | C15: m= | D15: =IF(AND(C9>0,C10=0),INDEX(LINEST(G5:G9,F5:F9),1),0) -> 0 | E15: =IF(AND(C10>0,C11=0),INDEX(LINEST(G5:G10,F5:F10),1),0) -> 0 | F15: =IF(C11>0,INDEX(LINEST(G5:G11,F5:F11),1),0) ->  | G15: =MAX(D15:F15) ->  | H15: =ATAN(G15)*(180/PI()) ->  | I15: t max @15 | J15: =VLOOKUP(K15,B5:D12,3,0) ->  | K15: 15 | M15: F= | N15: =ATAN(N13)*(180/PI()) ->  | O15: =ATAN(O13)*(180/PI()) ->  | P15: =ATAN(P13)*(180/PI()) ->  | Q15: =MAX(N15:P15) -> 
B16: =B15*(PI()/180) ->  | C16: b= | D16: =IF(AND(C9>0,C10=0),INDEX(LINEST(G5:G9,F5:F9),2),0) -> 0 | E16: =IF(AND(C10>0,C11=0),INDEX(LINEST(G5:G10,F5:F10),2),0) -> 0 | F16: =IF(C11>0,INDEX(LINEST(G5:G11,F5:F11),2),0) ->  | G16: =MAX(D16:F16) ->  | M16: 2a= | N16: =90+N15 ->  | O16: =90+O15 ->  | P16: =90+P15 ->  | Q16: =MAX(N16:P16) -> 
C17: R^2= | D17: =IF(AND(C9>0,C10=0),CORREL(F5:F9,G5:G9),0) -> 0 | E17: =IF(AND(C10>0,C11=0),CORREL(F5:F10,G5:G10),0) -> 0 | F17: =IF(C11>0,CORREL(F5:F11,G5:G11),0) ->  | G17: =MAX(D17:F17) -> 
A19: Normal Stress | B19: Line | C19: Circle 1 | D19: Circle 2 | E19: Circle 3 | F19: Circle 4 | G19: Circle 5 | H19: Circle 6 | I19: Circle 7 | J19: Circle 8
A20: 0 | B20: =$G$15*A20+$G$16 ->  | C20: =IF(AND($C$5>=A20,A20>=$B$5),($D$5^2-(A20-$E$5)^2)^0.5,0) ->  | D20: =IF(AND($C$6>=A20,A20>=$B$6),($D$6^2-(A20-$E$6)^2)^0.5,0) ->  | E20: =IF(AND($C$7>=A20,A20>$B$7),($D$7^2-(A20-$E$7)^2)^0.5,0) -> 0 | F20: =IF(AND($C$8>=A20,A20>=$B$8),($D$8^2-(A20-$E$8)^2)^0.5,0) ->  | G20: =IF(AND($C$9>=A20,A20>=$B$9),($D$9^2-(A20-$E$9)^2)^0.5,0) ->  | H20: =IF(AND($C$10>=A20,A20>=$B$10),($D$10^2-(A20-$E$10)^2)^0.5,0) ->  | I20: =IF(AND($C$11>=A20,A20>=$B$11),($D$11^2-(A20-$E$11)^2)^0.5,0) ->  | J20: =IF(AND($C$12>=A20,A20>=$B$12),($D$12^2-(A20-$E$12)^2)^0.5,0) -> 
A21: =A20+0.2 -> 0.2 | B21: =$G$15*A21+$G$16 ->  | J21: =IF(AND($C$12>=A21,A21>=$B$12),($D$12^2-(A21-$E$12)^2)^0.5,0) -> 
A22: =A21+0.2 -> 0.4
A23: 0.6
A24: 0.8
A25: 1
A26: 1.2
A27: 1.4
A28: 1.6
A29: 1.8
A30: 2
A31: 2.2
A32: 2.4
A33: 2.6
A34: 2.8
A35: 3
A36: 3.2
A37: 3.4
A38: 3.6
A39: 3.8
A40: 4
A41: 4.2
A42: 4.4
A43: 4.6
A44: 4.8
A45: 5
A46: 5.2
A47: 5.4
A48: 5.6
A49: 5.8
A50: 6
A51: 6.2
A52: 6.4
A53: 6.6
A54: 6.8
A55: 7
A56: 7.2
A57: 7.4
A58: 7.6
A59: 7.8
A60: 8
A61: 8.2
A62: 8.4
A63: 8.6
A64: 8.8
A65: 9
A66: 9.2
A67: 9.4
A68: 9.6
A69: 9.8
A70: 10
A71: 10.2
A72: 10.4
A73: 10.6
A74: 10.8
A75: 11
A76: 11.2
A77: 11.4
A78: 11.6
A79: 11.8
A80: 12
A81: 12.2
A82: 12.4
A83: 12.6
A84: 12.8 | C84: =IF(AND($C$5>=A84,A84>=$B$5),($D$5^2-(A84-$E$5)^2)^0.5,0) ->  | D84: =IF(AND($C$6>=A84,A84>=$B$6),($D$6^2-(A84-$E$6)^2)^0.5,0) ->  | E84: =IF(AND($C$7>=A84,A84>$B$7),($D$7^2-(A84-$E$7)^2)^0.5,0) ->  | F84: =IF(AND($C$8>=A84,A84>=$B$8),($D$8^2-(A84-$E$8)^2)^0.5,0) ->  | G84: =IF(AND($C$9>=A84,A84>=$B$9),($D$9^2-(A84-$E$9)^2)^0.5,0) ->  | H84: =IF(AND($C$10>=A84,A84>=$B$10),($D$10^2-(A84-$E$10)^2)^0.5,0) ->  | I84: =IF(AND($C$11>=A84,A84>=$B$11),($D$11^2-(A84-$E$11)^2)^0.5,0) -> 
A85: 13 | B85: =$G$15*A85+$G$16 ->  | J85: =IF(AND($C$12>=A85,A85>=$B$12),($D$12^2-(A85-$E$12)^2)^0.5,0) -> 
A86: =A85+0.2 -> 13.2
A87: 13.4
A88: 13.6
A89: 13.8
A90: 14
A91: 14.2
A92: 14.4
A93: 14.6
A94: 14.8
A95: 15
A96: 15.2
A97: 15.4
A98: 15.6
A99: 15.8
A100: 16
A101: 16.2
A102: 16.4
A103: 16.6
A104: 16.8
A105: 17
A106: 17.2
A107: 17.4
A108: 17.6
A109: 17.8
A110: 18
A111: 18.2
A112: 18.4
A113: 18.6
A114: 18.8
A115: 19
A116: 19.2
A117: 19.4
A118: 19.6
A119: 19.8
A120: 20
A121: 20.2
A122: 20.4
A123: 20.6
A124: 20.8
A125: 21
A126: 21.2
A127: 21.4
A128: 21.6
A129: 21.8
A130: 22
A131: 22.2
A132: 22.4
A133: 22.6
A134: 22.8
A135: 23
A136: 23.2
A137: 23.4
A138: 23.6
A139: 23.8
A140: 24
A141: 24.2
A142: 24.4
A143: 24.6
A144: 24.8
A145: 25
A146: 25.2
A147: 25.4
A148: 25.6 | C148: =IF(AND($C$5>=A148,A148>=$B$5),($D$5^2-(A148-$E$5)^2)^0.5,0) ->  | D148: =IF(AND($C$6>=A148,A148>=$B$6),($D$6^2-(A148-$E$6)^2)^0.5,0) ->  | E148: =IF(AND($C$7>=A148,A148>$B$7),($D$7^2-(A148-$E$7)^2)^0.5,0) ->  | F148: =IF(AND($C$8>=A148,A148>=$B$8),($D$8^2-(A148-$E$8)^2)^0.5,0) ->  | G148: =IF(AND($C$9>=A148,A148>=$B$9),($D$9^2-(A148-$E$9)^2)^0.5,0) ->  | H148: =IF(AND($C$10>=A148,A148>=$B$10),($D$10^2-(A148-$E$10)^2)^0.5,0) ->  | I148: =IF(AND($C$11>=A148,A148>=$B$11),($D$11^2-(A148-$E$11)^2)^0.5,0) -> 
A149: 25.8 | B149: =$G$15*A149+$G$16 ->  | J149: =IF(AND($C$12>=A149,A149>=$B$12),($D$12^2-(A149-$E$12)^2)^0.5,0) -> 
A150: =A149+0.2 -> 26
A151: 26.2
A152: 26.4
A153: 26.6
A154: 26.8
A155: 27
A156: 27.2
A157: 27.4
A158: 27.6
A159: 27.8
A160: 28
A161: 28.2
A162: 28.4
A163: 28.6
A164: 28.8
A165: 29
A166: 29.2
A167: 29.4
A168: 29.6
A169: 29.8
A170: 30
A171: 30.2
A172: 30.4
A173: 30.6
A174: 30.8
A175: 31
A176: 31.2
A177: 31.4
A178: 31.6
A179: 31.8
A180: 32
A181: 32.2
A182: 32.4
A183: 32.6
A184: 32.8
A185: 33
A186: 33.2
A187: 33.4
A188: 33.6
A189: 33.8
A190: 34
A191: 34.2
A192: 34.4
A193: 34.6
A194: 34.8
A195: 35
A196: 35.2
A197: 35.4
A198: 35.6
A199: 35.8
A200: 36
A201: 36.2
... 1069 more rows

Sheet Classification
B1: Classification Analysis
A3: Regression for Triaxial Classification Curve
B5: Y | C5: X | D5: X^2 | F5: 6 | G5: 7 | H5: 8
A6: 1 | B6: ='Mohr Analysis'!G5 ->  | C6: ='Mohr Analysis'!F5 ->  | D6: =C6^2 ->  | E6: A0 | F6: =IF(AND(B11>0,B12=0),INDEX(LINEST(B6:B11,C6:D11),3),0) ->  | G6: =IF(AND(B12>0,B13=0),INDEX(LINEST(B6:B12,C6:D12),3),0) ->  | H6: =IF(B13>0,INDEX(LINEST(B6:B13,C6:D13),3),0) ->  | I6: =SUM(F6:H6) -> 
A7: 2 | B7: ='Mohr Analysis'!G6 ->  | C7: ='Mohr Analysis'!F6 ->  | D7: =C7^2 -> 
A8: 3 | B8: ='Mohr Analysis'!G7 ->  | C8: ='Mohr Analysis'!F7 ->  | E8: A1 | F8: =IF(AND(B11>0,B12=0),INDEX(LINEST(B6:B11,C6:D11),2),0) ->  | G8: =IF(AND(B12>0,B13=0),INDEX(LINEST(B6:B12,C6:D12),2),0) ->  | H8: =IF(B13>0,INDEX(LINEST(B6:B13,C6:D13),2),0) ->  | I8: =SUM(F8:H8) -> 
A9: 4 | B9: ='Mohr Analysis'!G8 ->  | C9: ='Mohr Analysis'!F8 -> 
A10: 5 | B10: ='Mohr Analysis'!G9 ->  | C10: ='Mohr Analysis'!F9 ->  | E10: A2 | F10: =IF(AND(B11>0,B12=0),INDEX(LINEST(B6:B11,C6:D11),1),0) ->  | G10: =IF(AND(B12>0,B13=0),INDEX(LINEST(B6:B12,C6:D12),1),0) ->  | H10: =IF(B13>0,INDEX(LINEST(B6:B13,C6:D13),1),0) ->  | I10: =SUM(F10:H10) -> 
A11: 6 | B11: ='Mohr Analysis'!G10 ->  | C11: ='Mohr Analysis'!F10 -> 
A12: 7 | B12: ='Mohr Analysis'!G11 ->  | C12: ='Mohr Analysis'!F11 -> 
A13: 8 | B13: ='Mohr Analysis'!G12 ->  | C13: ='Mohr Analysis'!F12 -> 
A15: Lat. Pressure | B15: 3 | C15: 5 | D15: 10 | E15: 15 | F15: 20 | G15: 25
A16: <2 | B16: =IF(AND($B$27>$C$27,$B$37>$C$37,$B$62>$C$62,$B$87>$C$87),1,0) ->  | C16: =IF($B$22=1,1,0) ->  | D16: =IF($B$22=1,1,0) ->  | E16: =IF($B$22=1,1,0) ->  | F16: =IF($B$22=1,1,0) ->  | G16: =IF($B$22=1,1,0) -> 
A17: 2-3 | B17: =IF(OR(AND($C$27>=$B$27,$B$27>=$D$27),AND($C$62>=$B$62,$B$62>=$D$62),AND($C$87>=$B$87,$B$87>=$D$87)),2,0) ->  | C17: =IF($B$22=2,((($B37-$C37)/($D37-$C37))*(($B$17+1)-$B$17)+$B$17),0) ->  | D17: =IF($B$22=2,((($B62-$C62)/($D62-$C62))*(($B$17+1)-$B$17)+$B$17),0) ->  | E17: =IF($B$22=2,((($B87-$C87)/($D87-$C87))*(($B$17+1)-$B$17)+$B$17),0) ->  | F17: =IF($B$22=2,((($B112-$C112)/($D112-$C112))*(($B$17+1)-$B$17)+$B$17),0) ->  | G17: =IF($B$22=2,((($B137-$C137)/($D137-$C137))*(($B$17+1)-$B$17)+$B$17),0) -> 
A18: 3-4 | B18: =IF(OR(AND($D$62>=$B$62,$B$62>$E$62),AND($D$27>=$B$27,$B$27>=$E$27),AND($D$87>=$B$87,$B$87>=$E$87)),3,0) ->  | C18: =IF($B$22=3,((($B37-$D37)/($E37-$D37))*(($B$18+1)-$B$18)+$B$18),0) ->  | D18: =IF($B$22=3,((($B62-$D62)/($E62-$D62))*(($B$18+1)-$B$18)+$B$18),0) ->  | E18: =IF($B$22=3,((($B87-$D87)/($E87-$D87))*(($B$18+1)-$B$18)+$B$18),0) ->  | F18: =IF($B$22=3,((($B112-$D112)/($E112-$D112))*(($B$18+1)-$B$18)+$B$18),0) ->  | G18: =IF($B$22=3,((($B137-$D137)/($E137-$D137))*(($B$18+1)-$B$18)+$B$18),0) -> 
A19: 4-5 | B19: =IF(OR(AND($E$62>=$B$62,$B$62>$F$62),AND($E$87>=$B$87,$B$87>=$F$87),AND($E$27>=$B$27,$B$27>=$F$27)),4,0) ->  | C19: =IF($B$22=4,((($B37-$E37)/($F37-$E37))*(($B19+1)-$B19)+$B19),0) ->  | D19: =IF($B$22=4,((($B62-$E62)/($F62-$E62))*(($B19+1)-$B19)+$B19),0) ->  | E19: =IF($B$22=4,((($B87-$E87)/($F87-$E87))*(($B19+1)-$B19)+$B19),0) ->  | F19: =IF($B$22=4,((($B112-$E112)/($F112-$E112))*(($B19+1)-$B19)+$B19),0) ->  | G19: =IF($B$22=4,((($B137-$E137)/($F137-$E137))*(($B19+1)-$B19)+$B19),0) -> 
A20: 5-6 | B20: =IF(OR(AND($F$62>=$B$62,$B$62>$G$62),AND($F$37>=$B$37,$B$37>=$G$37),AND($F$87>=$B$87,$B$87>$G$87)),5,0) ->  | C20: =IF($B22=5,((($B37-$F37)/($G37-$F37))*(($B20+1)-$B20)+$B20),0) ->  | D20: =IF($B22=5,((($B62-$F62)/($G62-$F62))*(($B20+1)-$B20)+$B20),0) ->  | E20: =IF($B$22=5,((($B87-$F87)/($G87-$F87))*(($B20+1)-$B20)+$B20),0) ->  | F20: =IF($B$22=5,((($B112-$F112)/($G112-$F112))*(($B20+1)-$B20)+$B20),0) ->  | G20: =IF($B$22=5,((($B137-$F137)/($G137-$F137))*(($B20+1)-$B20)+$B20),0) -> 
A21: >6 | B21: =IF(AND($G$87>=$B$87,$G$112>=$B$112,$G$62>=$B$62),6,0) ->  | C21: =IF($B$22=6,6,0) ->  | D21: =IF($B$22=6,6,0) ->  | E21: =IF($B$22=6,6,0) ->  | F21: =IF($B$22=6,6,0) ->  | G21: =IF($B$22=6,6,0) -> 
B22: =MAX(B16:B21) ->  | C22: =SUM(C16:C21) ->  | D22: =SUM(D16:D21) ->  | E22: =SUM(E16:E21) ->  | F22: =SUM(F16:F21) ->  | G22: =SUM(G16:G21) -> 
A24: Classification | B24: =IF(MAX(C22:G22)<2,1,MAX(C22:G22)) -> 
A26: Normal Stress | B26: Sample | C26: Class 1 | D26: Class 2 | E26: Class 3 | F26: Class 4 | G26: Class 5
A27: 3 | B27: =$I$6+A27*$I$8+A27^2*$I$10 ->  | C27: =0.001022*A27^3-0.06666*A27^2+2.497027*A27+4.076607 -> 11 | D27: =0.001247*A27^3-0.07441*A27^2+2.164692*A27+2.330839 -> 8.2 | E27: =-0.000024*A27^3-0.01974*A27^2+1.317306*A27+0.119072 -> 3.9 | F27: =0.001212*A27^3-0.06968*A27^2+1.485888*A27-2.817 -> 1
A28: =A27+0.2 -> 3.2 | B28: =$I$6+A28*$I$8+A28^2*$I$10 ->  | C28: =0.001022*A28^3-0.06666*A28^2+2.497027*A28+4.076607 -> 11.4 | D28: =0.001247*A28^3-0.07441*A28^2+2.164692*A28+2.330839 -> 8.5 | E28: =-0.000024*A28^3-0.01974*A28^2+1.317306*A28+0.119072 -> 4.1 | F28: =0.001212*A28^3-0.06968*A28^2+1.485888*A28-2.817 -> 1.3
A29: =A28+0.2 -> 3.4 | C29: 11.8 | D29: 8.9 | E29: 4.4 | F29: 1.5
A30: 3.6 | C30: 12.2 | D30: 9.2 | E30: 4.6 | F30: 1.7
A31: 3.8 | C31: 12.7 | D31: 9.6 | E31: 4.8 | F31: 1.9
A32: 4 | C32: 13.1 | D32: 9.9 | E32: 5.1 | F32: 2.1
A33: 4.2 | C33: 13.5 | D33: 10.2 | E33: 5.3 | F33: 2.3
A34: 4.4 | C34: 13.9 | D34: 10.5 | E34: 5.5 | F34: 2.5
A35: 4.6 | C35: 14.3 | D35: 10.8 | E35: 5.8 | F35: 2.7
A36: 4.8 | C36: 14.6 | D36: 11.1 | E36: 6 | F36: 2.8
A37: 5 | C37: 15 | D37: 11.4 | E37: 6.2 | F37: 3
A38: 5.2 | C38: 15.4 | D38: 11.8 | E38: 6.4 | F38: 3.2
A39: 5.4 | C39: 15.8 | D39: 12 | E39: 6.7 | F39: 3.4
A40: 5.6 | C40: 16.1 | D40: 12.3 | E40: 6.9 | F40: 3.5
A41: 5.8 | C41: 16.5 | D41: 12.6 | E41: 7.1 | F41: 3.7
A42: 6 | C42: 16.9 | D42: 12.9 | E42: 7.3 | F42: 3.9
A43: 6.2 | C43: 17.2 | D43: 13.2 | E43: 7.5 | F43: 4 | G43: =0.000933*A43^3-0.05443*A43^2+1.1017456*A43-2.71421 -> 2.2
A44: 6.4 | C44: 17.6 | D44: 13.5 | E44: 7.7 | F44: 4.2 | G44: =0.000933*A44^3-0.05443*A44^2+1.1017456*A44-2.71421 -> 2.4
A45: 6.6 | C45: 17.9 | D45: 13.7 | E45: 7.9 | F45: 4.3 | G45: 2.5
A46: 6.8 | C46: 18.3 | D46: 14 | E46: 8.2 | F46: 4.4 | G46: 2.6
A47: 7 | C47: 18.6 | D47: 14.3 | E47: 8.4 | F47: 4.6 | G47: 2.7
A48: 7.2 | C48: 19 | D48: 14.5 | E48: 8.6 | F48: 4.7 | G48: 2.7
A49: 7.4 | C49: 19.3 | D49: 14.8 | E49: 8.8 | F49: 4.9 | G49: 2.8
A50: 7.6 | C50: 19.7 | D50: 15 | E50: 9 | F50: 5 | G50: 2.9
A51: 7.8 | C51: 20 | D51: 15.3 | E51: 9.2 | F51: 5.1 | G51: 3
A52: 8 | C52: 20.3 | D52: 15.5 | E52: 9.4 | F52: 5.2 | G52: 3.1
A53: 8.2 | C53: 20.6 | D53: 15.8 | E53: 9.6 | F53: 5.4 | G53: 3.2
A54: 8.4 | C54: 21 | D54: 16 | E54: 9.8 | F54: 5.5 | G54: 3.3
A55: 8.6 | C55: 21.3 | D55: 16.2 | E55: 10 | F55: 5.6 | G55: 3.3
A56: 8.8 | C56: 21.6 | D56: 16.5 | E56: 10.2 | F56: 5.7 | G56: 3.4
A57: 9 | C57: 21.9 | D57: 16.7 | E57: 10.4 | F57: 5.8 | G57: 3.5
A58: 9.2 | C58: 22.2 | D58: 16.9 | E58: 10.5 | F58: 5.9 | G58: 3.5
A59: 9.4 | C59: 22.5 | D59: 17.1 | E59: 10.7 | F59: 6 | G59: 3.6
A60: 9.6 | C60: 22.8 | D60: 17.4 | E60: 10.9 | F60: 6.1 | G60: 3.7
A61: 9.8 | C61: 23.1 | D61: 17.6 | E61: 11.1 | F61: 6.2 | G61: 3.7
A62: 10 | C62: 23.4 | D62: 17.8 | E62: 11.3 | F62: 6.3 | G62: 3.8
A63: 10.2 | C63: 23.7 | D63: 18 | E63: 11.5 | F63: 6.4 | G63: 3.9
A64: 10.4 | C64: 24 | D64: 18.2 | E64: 11.7 | F64: 6.5 | G64: 3.9
A65: 10.6 | C65: 24.3 | D65: 18.4 | E65: 11.8 | F65: 6.5 | G65: 4
A66: 10.8 | C66: 24.6 | D66: 18.6 | E66: 12 | F66: 6.6 | G66: 4
A67: 11 | C67: 24.8 | D67: 18.8 | E67: 12.2 | F67: 6.7 | G67: 4.1
A68: 11.2 | C68: 25.1 | D68: 19 | E68: 12.4 | F68: 6.8 | G68: 4.1
A69: 11.4 | C69: 25.4 | D69: 19.2 | E69: 12.5 | F69: 6.9 | G69: 4.2
A70: 11.6 | C70: 25.7 | D70: 19.4 | E70: 12.7 | F70: 6.9 | G70: 4.2
A71: 11.8 | C71: 25.9 | D71: 19.6 | E71: 12.9 | F71: 7 | G71: 4.2
A72: 12 | C72: 26.2 | D72: 19.7 | E72: 13 | F72: 7.1 | G72: 4.3
A73: 12.2 | C73: 26.5 | D73: 19.9 | E73: 13.2 | F73: 7.1 | G73: 4.3
A74: 12.4 | C74: 26.7 | D74: 20.1 | E74: 13.4 | F74: 7.2 | G74: 4.4
A75: 12.6 | C75: 27 | D75: 20.3 | E75: 13.5 | F75: 7.3 | G75: 4.4
A76: 12.8 | C76: 27.3 | D76: 20.5 | E76: 13.7 | F76: 7.3 | G76: 4.4
A77: 13 | C77: 27.5 | D77: 20.6 | E77: 13.9 | F77: 7.4 | G77: 4.5
A78: 13.2 | C78: 27.8 | D78: 20.8 | E78: 14 | F78: 7.4 | G78: 4.5
A79: 13.4 | C79: 28 | D79: 21 | E79: 14.2 | F79: 7.5 | G79: 4.5
A80: 13.6 | C80: 28.3 | D80: 21.1 | E80: 14.3 | F80: 7.6 | G80: 4.5
A81: 13.8 | C81: 28.5 | D81: 21.3 | E81: 14.5 | F81: 7.6 | G81: 4.6
A82: 14 | C82: 28.8 | D82: 21.5 | E82: 14.6 | F82: 7.7 | G82: 4.6
A83: 14.2 | C83: 29 | D83: 21.6 | E83: 14.8 | F83: 7.7 | G83: 4.6
A84: 14.4 | C84: 29.3 | D84: 21.8 | E84: 14.9 | F84: 7.7 | G84: 4.7
A85: 14.6 | C85: 29.5 | D85: 22 | E85: 15.1 | F85: 7.8 | G85: 4.7
A86: 14.8 | C86: 29.7 | D86: 22.1 | E86: 15.2 | F86: 7.8 | G86: 4.7
A87: 15 | C87: 30 | D87: 22.3 | E87: 15.4 | F87: 7.9 | G87: 4.7
A88: 15.2 | C88: 30.2 | D88: 22.4 | E88: 15.5 | F88: 7.9 | G88: 4.7
A89: 15.4 | C89: 30.5 | D89: 22.6 | E89: 15.6 | F89: 8 | G89: 4.8
A90: 15.6 | C90: 30.7 | D90: 22.7 | E90: 15.8 | F90: 8 | G90: 4.8
A91: 15.8 | C91: 30.9 | D91: 22.9 | E91: 15.9 | F91: 8 | G91: 4.8
A92: 16 | B92: =$I$6+A92*$I$8+A92^2*$I$10 ->  | C92: =0.001022*A92^3-0.06666*A92^2+2.497027*A92+4.076607 -> 31.2 | D92: =0.001247*A92^3-0.07441*A92^2+2.164692*A92+2.330839 -> 23 | E92: =-0.000024*A92^3-0.01974*A92^2+1.317306*A92+0.119072 -> 16 | F92: =0.001212*A92^3-0.06968*A92^2+1.485888*A92-2.817 -> 8.1 | G92: 4.8
A93: =A92+0.2 -> 16.2 | C93: 31.4 | D93: 23.2 | E93: 16.2 | F93: 8.1 | G93: 4.8
A94: 16.4 | C94: 31.6 | D94: 23.3 | E94: 16.3 | F94: 8.2 | G94: 4.8
A95: 16.6 | C95: 31.8 | D95: 23.5 | E95: 16.4 | F95: 8.2 | G95: 4.8
A96: 16.8 | C96: 32.1 | D96: 23.6 | E96: 16.6 | F96: 8.2 | G96: 4.9
A97: 17 | C97: 32.3 | D97: 23.8 | E97: 16.7 | F97: 8.3 | G97: 4.9
A98: 17.2 | C98: 32.5 | D98: 23.9 | E98: 16.8 | F98: 8.3 | G98: 4.9
A99: 17.4 | C99: 32.7 | D99: 24 | E99: 16.9 | F99: 8.3 | G99: 4.9
A100: 17.6 | C100: 32.9 | D100: 24.2 | E100: 17.1 | F100: 8.4 | G100: 4.9
A101: 17.8 | C101: 33.2 | D101: 24.3 | E101: 17.2 | F101: 8.4 | G101: 4.9
A102: 18 | C102: 33.4 | D102: 24.5 | E102: 17.3 | F102: 8.4 | G102: 4.9
A103: 18.2 | C103: 33.6 | D103: 24.6 | E103: 17.4 | F103: 8.5 | G103: 4.9
A104: 18.4 | C104: 33.8 | D104: 24.7 | E104: 17.5 | F104: 8.5 | G104: 4.9
A105: 18.6 | C105: 34 | D105: 24.9 | E105: 17.6 | F105: 8.5 | G105: 5
A106: 18.8 | C106: 34.3 | D106: 25 | E106: 17.7 | F106: 8.5 | G106: 5
A107: 19 | C107: 34.5 | D107: 25.2 | E107: 17.9 | F107: 8.6 | G107: 5
A108: 19.2 | C108: 34.7 | D108: 25.3 | E108: 18 | F108: 8.6 | G108: =0.000933*A108^3-0.05443*A108^2+1.1017456*A108-2.71421 -> 5
A109: 19.4 | C109: 34.9 | D109: 25.4 | E109: 18.1 | F109: 8.6 | G109: 5
A110: 19.6 | C110: 35.1 | D110: 25.6 | E110: 18.2 | F110: 8.7 | G110: 5
A111: 19.8 | C111: 35.3 | D111: 25.7 | E111: 18.3 | F111: 8.7 | G111: 5
A112: 20 | C112: 35.5 | D112: 25.8 | E112: 18.4 | F112: 8.7 | G112: 5
A113: 20.2 | C113: 35.7 | D113: 26 | E113: 18.5 | F113: 8.8 | G113: 5
A114: 20.4 | C114: 36 | D114: 26.1 | E114: 18.6 | F114: 8.8 | G114: 5
A115: 20.6 | C115: 36.2 | D115: 26.2 | E115: 18.7 | F115: 8.8 | G115: 5
A116: 20.8 | C116: 36.4 | D116: 26.4 | E116: 18.8 | F116: 8.8 | G116: 5
A117: 21 | C117: 36.6 | D117: 26.5 | E117: 18.9 | F117: 8.9 | G117: 5.1
A118: 21.2 | C118: 36.8 | D118: 26.7 | E118: 18.9 | F118: 8.9 | G118: 5.1
A119: 21.4 | C119: 37 | D119: 26.8 | E119: 19 | F119: 8.9 | G119: 5.1
A120: 21.6 | C120: 37.2 | D120: 26.9 | E120: 19.1 | F120: 9 | G120: 5.1
A121: 21.8 | C121: 37.4 | D121: 27.1 | E121: 19.2 | F121: 9 | G121: 5.1
A122: 22 | C122: 37.6 | D122: 27.2 | E122: 19.3 | F122: 9.1 | G122: 5.1
A123: 22.2 | C123: 37.8 | D123: 27.4 | E123: 19.4 | F123: 9.1 | G123: 5.1
A124: 22.4 | C124: 38 | D124: 27.5 | E124: 19.5 | F124: 9.1 | G124: 5.1
A125: 22.6 | C125: 38.3 | D125: 27.6 | E125: 19.5 | F125: 9.2 | G125: 5.2
A126: 22.8 | C126: 38.5 | D126: 27.8 | E126: 19.6 | F126: 9.2 | G126: 5.2
A127: 23 | C127: 38.7 | D127: 27.9 | E127: 19.7 | F127: 9.2 | G127: 5.2
A128: 23.2 | C128: 38.9 | D128: 28.1 | E128: 19.8 | F128: 9.3 | G128: 5.2
A129: 23.4 | C129: 39.1 | D129: 28.2 | E129: 19.8 | F129: 9.3 | G129: 5.2
A130: 23.6 | C130: 39.3 | D130: 28.4 | E130: 19.9 | F130: 9.4 | G130: 5.2
A131: 23.8 | C131: 39.5 | D131: 28.5 | E131: 20 | F131: 9.4 | G131: 5.3
A132: 24 | C132: 39.7 | D132: 28.7 | E132: 20 | F132: 9.5 | G132: 5.3
A133: 24.2 | C133: 40 | D133: 28.8 | E133: 20.1 | F133: 9.5 | G133: 5.3
A134: 24.4 | C134: 40.2 | D134: 29 | E134: 20.2 | F134: 9.6 | G134: 5.3
A135: 24.6 | C135: 40.4 | D135: 29.1 | E135: 20.2 | F135: 9.6 | G135: 5.3
A136: 24.8 | C136: 40.6 | D136: 29.3 | E136: 20.3 | F136: 9.7 | G136: 5.4
A137: 25 | C137: 40.8 | D137: 29.4 | E137: 20.3 | F137: 9.7 | G137: 5.4
A138: 25.2 | C138: 41 | D138: 29.6 | E138: 20.4 | F138: 9.8 | G138: 5.4
A139: 25.4 | C139: 41.2 | D139: 29.7 | E139: 20.4 | F139: 9.8 | G139: 5.4
A140: 25.6 | C140: 41.5 | D140: 29.9 | E140: 20.5 | F140: 9.9 | G140: 5.5
A141: 25.8 | C141: 41.7 | D141: 30.1 | E141: 20.6 | F141: 10 | G141: 5.5
A142: 26 | C142: 41.9 | D142: 30.2 | E142: 20.6 | F142: 10 | G142: 5.5
A143: 26.2 | C143: 42.1 | D143: 30.4 | E143: 20.7 | F143: 10.1 | G143: 5.6
A144: 26.4 | C144: 42.3 | D144: 30.6 | E144: 20.7 | F144: 10.1 | G144: 5.6
A145: 26.6 | C145: 42.6 | D145: 30.7 | E145: 20.7 | F145: 10.2 | G145: 5.6
A146: 26.8 | C146: 42.8 | D146: 30.9 | E146: 20.8 | F146: 10.3 | G146: 5.7
A147: 27 | C147: 43 | D147: 31.1 | E147: 20.8 | F147: 10.4 | G147: 5.7

Sheet RX (hidden)
A1: 302 | C1: =+SampleId -> 0 | D1: =+TestNumber -> 0
A2: Fld_nbr | B2: Value | C2: Desc_1 | D2: Desc_2 | E2: Desc_3 | F2: Desc_4 | G2: Desc_5 | H2: Desc_6 | I2: Desc_7
A3: 1 | B3: =IF(Worksheet!$B$57="","",Worksheet!$B$57) ->  | C3: =Worksheet!$B$56 -> Remarks:
A4: 2 | B4: =IF(Worksheet!$D$19="","",Worksheet!$D$19) ->  | C4: =IF(Worksheet!$C$19="","",Worksheet!$C$19) -> COURSE\LIFT:
A5: 3 | B5: =IF(Worksheet!$C$66="","",Worksheet!$C$66) ->  | C5: Tested By | D5: =IF(Worksheet!$B$66="","",Worksheet!$B$66) -> TX117
A6: 4 | B6: =IF(Worksheet!$F$66="","",Worksheet!$F$66) ->  | C6: Tested Date | D6: =IF(Worksheet!$B$66="","",Worksheet!$B$66) -> TX117
A7: 5 | B7: =IF('Tex-113,4-E'!$C$59="","",'Tex-113,4-E'!$C$59) ->  | C7: Tested By | D7: =IF('Tex-113,4-E'!$B$59="","",'Tex-113,4-E'!$B$59) -> TX113
A8: 6 | B8: =IF('Tex-113,4-E'!$F$59="","",'Tex-113,4-E'!$F$59) ->  | C8: Tested Date | D8: =IF('Tex-113,4-E'!$B$59="","",'Tex-113,4-E'!$B$59) -> TX113
A9: 7 | B9: =IF('Tex-113,4-E'!$C$61="","",'Tex-113,4-E'!$C$61) ->  | C9: Tested By | D9: =IF('Tex-113,4-E'!$B$61="","",'Tex-113,4-E'!$B$61) -> TX114
A10: 8 | B10: =IF('Tex-113,4-E'!$F$61="","",'Tex-113,4-E'!$F$61) ->  | C10: Tested Date | D10: =IF('Tex-113,4-E'!$B$61="","",'Tex-113,4-E'!$B$61) -> TX114
A11: 9 | B11: =IF(Worksheet!$D$25="","",Worksheet!$D$25) ->  | C11: =IF(Worksheet!$B$21="","",Worksheet!$B$21) -> Performed By Tex-117-E: | D11: =IF(Worksheet!$B$25="","",Worksheet!$B$25) -> Initial Height of Specimen, in.: | E11: =IF(Worksheet!$D$24="","",Worksheet!$D$24) -> 1
A12: 10 | B12: =IF(Worksheet!$E$25="","",Worksheet!$E$25) ->  | C12: =IF(Worksheet!$B$21="","",Worksheet!$B$21) -> Performed By Tex-117-E: | D12: =IF(Worksheet!$B$25="","",Worksheet!$B$25) -> Initial Height of Specimen, in.: | E12: =IF(Worksheet!$E$24="","",Worksheet!$E$24) -> 2
A13: 11 | B13: =IF(Worksheet!$F$25="","",Worksheet!$F$25) ->  | C13: =IF(Worksheet!$B$21="","",Worksheet!$B$21) -> Performed By Tex-117-E: | D13: =IF(Worksheet!$B$25="","",Worksheet!$B$25) -> Initial Height of Specimen, in.: | E13: =IF(Worksheet!$F$24="","",Worksheet!$F$24) -> 3
A14: 12 | B14: =IF(Worksheet!$G$25="","",Worksheet!$G$25) ->  | C14: =IF(Worksheet!$B$21="","",Worksheet!$B$21) -> Performed By Tex-117-E: | D14: =IF(Worksheet!$B$25="","",Worksheet!$B$25) -> Initial Height of Specimen, in.: | E14: =IF(Worksheet!$G$24="","",Worksheet!$G$24) -> 4
A15: 13 | B15: =IF(Worksheet!$H$25="","",Worksheet!$H$25) ->  | C15: =IF(Worksheet!$B$21="","",Worksheet!$B$21) -> Performed By Tex-117-E: | D15: =IF(Worksheet!$B$25="","",Worksheet!$B$25) -> Initial Height of Specimen, in.: | E15: =IF(Worksheet!$H$24="","",Worksheet!$H$24) -> 5
A16: 14 | B16: =IF(Worksheet!$I$25="","",Worksheet!$I$25) ->  | C16: =IF(Worksheet!$B$21="","",Worksheet!$B$21) -> Performed By Tex-117-E: | D16: =IF(Worksheet!$B$25="","",Worksheet!$B$25) -> Initial Height of Specimen, in.: | E16: =IF(Worksheet!$I$24="","",Worksheet!$I$24) -> 6
A17: 15 | B17: =IF(Worksheet!$J$25="","",Worksheet!$J$25) ->  | C17: =IF(Worksheet!$B$21="","",Worksheet!$B$21) -> Performed By Tex-117-E: | D17: =IF(Worksheet!$B$25="","",Worksheet!$B$25) -> Initial Height of Specimen, in.: | E17: =IF(Worksheet!$J$24="","",Worksheet!$J$24) -> 7
A18: 16 | B18: =IF(Worksheet!$K$25="","",Worksheet!$K$25) ->  | C18: =IF(Worksheet!$B$21="","",Worksheet!$B$21) -> Performed By Tex-117-E: | D18: =IF(Worksheet!$B$25="","",Worksheet!$B$25) -> Initial Height of Specimen, in.: | E18: =IF(Worksheet!$K$24="","",Worksheet!$K$24) -> 8
A19: 17 | B19: =IF(Worksheet!$D$26="","",Worksheet!$D$26) ->  | C19: =IF(Worksheet!$B$21="","",Worksheet!$B$21) -> Performed By Tex-117-E: | D19: =IF(Worksheet!$B$26="","",Worksheet!$B$26) -> Height of Stone 1, in. | E19: =IF(Worksheet!$D$24="","",Worksheet!$D$24) -> 1
A20: 18 | B20: =IF(Worksheet!$E$26="","",Worksheet!$E$26) ->  | C20: =IF(Worksheet!$B$21="","",Worksheet!$B$21) -> Performed By Tex-117-E: | D20: =IF(Worksheet!$B$26="","",Worksheet!$B$26) -> Height of Stone 1, in. | E20: =IF(Worksheet!$E$24="","",Worksheet!$E$24) -> 2
A21: 19 | B21: =IF(Worksheet!$F$26="","",Worksheet!$F$26) ->  | C21: =IF(Worksheet!$B$21="","",Worksheet!$B$21) -> Performed By Tex-117-E: | D21: =IF(Worksheet!$B$26="","",Worksheet!$B$26) -> Height of Stone 1, in. | E21: =IF(Worksheet!$F$24="","",Worksheet!$F$24) -> 3
A22: 20 | B22: =IF(Worksheet!$G$26="","",Worksheet!$G$26) ->  | C22: =IF(Worksheet!$B$21="","",Worksheet!$B$21) -> Performed By Tex-117-E: | D22: =IF(Worksheet!$B$26="","",Worksheet!$B$26) -> Height of Stone 1, in. | E22: =IF(Worksheet!$G$24="","",Worksheet!$G$24) -> 4
A23: 21 | B23: =IF(Worksheet!$H$26="","",Worksheet!$H$26) ->  | C23: =IF(Worksheet!$B$21="","",Worksheet!$B$21) -> Performed By Tex-117-E: | D23: =IF(Worksheet!$B$26="","",Worksheet!$B$26) -> Height of Stone 1, in. | E23: =IF(Worksheet!$H$24="","",Worksheet!$H$24) -> 5
A24: 22 | B24: =IF(Worksheet!$I$26="","",Worksheet!$I$26) ->  | C24: =IF(Worksheet!$B$21="","",Worksheet!$B$21) -> Performed By Tex-117-E: | D24: =IF(Worksheet!$B$26="","",Worksheet!$B$26) -> Height of Stone 1, in. | E24: =IF(Worksheet!$I$24="","",Worksheet!$I$24) -> 6
A25: 23 | B25: =IF(Worksheet!$J$26="","",Worksheet!$J$26) ->  | C25: =IF(Worksheet!$B$21="","",Worksheet!$B$21) -> Performed By Tex-117-E: | D25: =IF(Worksheet!$B$26="","",Worksheet!$B$26) -> Height of Stone 1, in. | E25: =IF(Worksheet!$J$24="","",Worksheet!$J$24) -> 7
A26: 24 | B26: =IF(Worksheet!$K$26="","",Worksheet!$K$26) ->  | C26: =IF(Worksheet!$B$21="","",Worksheet!$B$21) -> Performed By Tex-117-E: | D26: =IF(Worksheet!$B$26="","",Worksheet!$B$26) -> Height of Stone 1, in. | E26: =IF(Worksheet!$K$24="","",Worksheet!$K$24) -> 8
A27: 25 | B27: =IF(Worksheet!$D$27="","",Worksheet!$D$27) ->  | C27: =IF(Worksheet!$B$21="","",Worksheet!$B$21) -> Performed By Tex-117-E: | D27: =IF(Worksheet!$B$27="","",Worksheet!$B$27) -> Height of Stone 2, in. | E27: =IF(Worksheet!$D$24="","",Worksheet!$D$24) -> 1
A28: 26 | B28: =IF(Worksheet!$E$27="","",Worksheet!$E$27) ->  | C28: =IF(Worksheet!$B$21="","",Worksheet!$B$21) -> Performed By Tex-117-E: | D28: =IF(Worksheet!$B$27="","",Worksheet!$B$27) -> Height of Stone 2, in. | E28: =IF(Worksheet!$E$24="","",Worksheet!$E$24) -> 2
A29: 27 | B29: =IF(Worksheet!$F$27="","",Worksheet!$F$27) ->  | C29: =IF(Worksheet!$B$21="","",Worksheet!$B$21) -> Performed By Tex-117-E: | D29: =IF(Worksheet!$B$27="","",Worksheet!$B$27) -> Height of Stone 2, in. | E29: =IF(Worksheet!$F$24="","",Worksheet!$F$24) -> 3
A30: 28 | B30: =IF(Worksheet!$G$27="","",Worksheet!$G$27) ->  | C30: =IF(Worksheet!$B$21="","",Worksheet!$B$21) -> Performed By Tex-117-E: | D30: =IF(Worksheet!$B$27="","",Worksheet!$B$27) -> Height of Stone 2, in. | E30: =IF(Worksheet!$G$24="","",Worksheet!$G$24) -> 4
A31: 29 | B31: =IF(Worksheet!$H$27="","",Worksheet!$H$27) ->  | C31: =IF(Worksheet!$B$21="","",Worksheet!$B$21) -> Performed By Tex-117-E: | D31: =IF(Worksheet!$B$27="","",Worksheet!$B$27) -> Height of Stone 2, in. | E31: =IF(Worksheet!$H$24="","",Worksheet!$H$24) -> 5
A32: 30 | B32: =IF(Worksheet!$I$27="","",Worksheet!$I$27) ->  | C32: =IF(Worksheet!$B$21="","",Worksheet!$B$21) -> Performed By Tex-117-E: | D32: =IF(Worksheet!$B$27="","",Worksheet!$B$27) -> Height of Stone 2, in. | E32: =IF(Worksheet!$I$24="","",Worksheet!$I$24) -> 6
A33: 31 | B33: =IF(Worksheet!$J$27="","",Worksheet!$J$27) ->  | C33: =IF(Worksheet!$B$21="","",Worksheet!$B$21) -> Performed By Tex-117-E: | D33: =IF(Worksheet!$B$27="","",Worksheet!$B$27) -> Height of Stone 2, in. | E33: =IF(Worksheet!$J$24="","",Worksheet!$J$24) -> 7
A34: 32 | B34: =IF(Worksheet!$K$27="","",Worksheet!$K$27) ->  | C34: =IF(Worksheet!$B$21="","",Worksheet!$B$21) -> Performed By Tex-117-E: | D34: =IF(Worksheet!$B$27="","",Worksheet!$B$27) -> Height of Stone 2, in. | E34: =IF(Worksheet!$K$24="","",Worksheet!$K$24) -> 8
A35: 33 | B35: =IF(Worksheet!$D$28="","",Worksheet!$D$28) ->  | C35: =IF(Worksheet!$B$21="","",Worksheet!$B$21) -> Performed By Tex-117-E: | D35: =IF(Worksheet!$B$28="","",Worksheet!$B$28) -> New Height of Specimen, in.: | E35: =IF(Worksheet!$D$24="","",Worksheet!$D$24) -> 1
A36: 34 | B36: =IF(Worksheet!$E$28="","",Worksheet!$E$28) ->  | C36: =IF(Worksheet!$B$21="","",Worksheet!$B$21) -> Performed By Tex-117-E: | D36: =IF(Worksheet!$B$28="","",Worksheet!$B$28) -> New Height of Specimen, in.: | E36: =IF(Worksheet!$E$24="","",Worksheet!$E$24) -> 2
A37: 35 | B37: =IF(Worksheet!$F$28="","",Worksheet!$F$28) ->  | C37: =IF(Worksheet!$B$21="","",Worksheet!$B$21) -> Performed By Tex-117-E: | D37: =IF(Worksheet!$B$28="","",Worksheet!$B$28) -> New Height of Specimen, in.: | E37: =IF(Worksheet!$F$24="","",Worksheet!$F$24) -> 3
A38: 36 | B38: =IF(Worksheet!$G$28="","",Worksheet!$G$28) ->  | C38: =IF(Worksheet!$B$21="","",Worksheet!$B$21) -> Performed By Tex-117-E: | D38: =IF(Worksheet!$B$28="","",Worksheet!$B$28) -> New Height of Specimen, in.: | E38: =IF(Worksheet!$G$24="","",Worksheet!$G$24) -> 4
A39: 37 | B39: =IF(Worksheet!$H$28="","",Worksheet!$H$28) ->  | C39: =IF(Worksheet!$B$21="","",Worksheet!$B$21) -> Performed By Tex-117-E: | D39: =IF(Worksheet!$B$28="","",Worksheet!$B$28) -> New Height of Specimen, in.: | E39: =IF(Worksheet!$H$24="","",Worksheet!$H$24) -> 5
A40: 38 | B40: =IF(Worksheet!$I$28="","",Worksheet!$I$28) ->  | C40: =IF(Worksheet!$B$21="","",Worksheet!$B$21) -> Performed By Tex-117-E: | D40: =IF(Worksheet!$B$28="","",Worksheet!$B$28) -> New Height of Specimen, in.: | E40: =IF(Worksheet!$I$24="","",Worksheet!$I$24) -> 6
A41: 39 | B41: =IF(Worksheet!$J$28="","",Worksheet!$J$28) ->  | C41: =IF(Worksheet!$B$21="","",Worksheet!$B$21) -> Performed By Tex-117-E: | D41: =IF(Worksheet!$B$28="","",Worksheet!$B$28) -> New Height of Specimen, in.: | E41: =IF(Worksheet!$J$24="","",Worksheet!$J$24) -> 7
A42: 40 | B42: =IF(Worksheet!$K$28="","",Worksheet!$K$28) ->  | C42: =IF(Worksheet!$B$21="","",Worksheet!$B$21) -> Performed By Tex-117-E: | D42: =IF(Worksheet!$B$28="","",Worksheet!$B$28) -> New Height of Specimen, in.: | E42: =IF(Worksheet!$K$24="","",Worksheet!$K$24) -> 8
A43: 41 | B43: =IF(Worksheet!$D$29="","",Worksheet!$D$29) ->  | C43: =IF(Worksheet!$B$21="","",Worksheet!$B$21) -> Performed By Tex-117-E: | D43: =IF(Worksheet!$B$29="","",Worksheet!$B$29) -> Average Diameter, in.: | E43: =IF(Worksheet!$D$24="","",Worksheet!$D$24) -> 1
A44: 42 | B44: =IF(Worksheet!$E$29="","",Worksheet!$E$29) ->  | C44: =IF(Worksheet!$B$21="","",Worksheet!$B$21) -> Performed By Tex-117-E: | D44: =IF(Worksheet!$B$29="","",Worksheet!$B$29) -> Average Diameter, in.: | E44: =IF(Worksheet!$E$24="","",Worksheet!$E$24) -> 2
A45: 43 | B45: =IF(Worksheet!$F$29="","",Worksheet!$F$29) ->  | C45: =IF(Worksheet!$B$21="","",Worksheet!$B$21) -> Performed By Tex-117-E: | D45: =IF(Worksheet!$B$29="","",Worksheet!$B$29) -> Average Diameter, in.: | E45: =IF(Worksheet!$F$24="","",Worksheet!$F$24) -> 3
A46: 44 | B46: =IF(Worksheet!$G$29="","",Worksheet!$G$29) ->  | C46: =IF(Worksheet!$B$21="","",Worksheet!$B$21) -> Performed By Tex-117-E: | D46: =IF(Worksheet!$B$29="","",Worksheet!$B$29) -> Average Diameter, in.: | E46: =IF(Worksheet!$G$24="","",Worksheet!$G$24) -> 4
A47: 45 | B47: =IF(Worksheet!$H$29="","",Worksheet!$H$29) ->  | C47: =IF(Worksheet!$B$21="","",Worksheet!$B$21) -> Performed By Tex-117-E: | D47: =IF(Worksheet!$B$29="","",Worksheet!$B$29) -> Average Diameter, in.: | E47: =IF(Worksheet!$H$24="","",Worksheet!$H$24) -> 5
A48: 46 | B48: =IF(Worksheet!$I$29="","",Worksheet!$I$29) ->  | C48: =IF(Worksheet!$B$21="","",Worksheet!$B$21) -> Performed By Tex-117-E: | D48: =IF(Worksheet!$B$29="","",Worksheet!$B$29) -> Average Diameter, in.: | E48: =IF(Worksheet!$I$24="","",Worksheet!$I$24) -> 6
A49: 47 | B49: =IF(Worksheet!$J$29="","",Worksheet!$J$29) ->  | C49: =IF(Worksheet!$B$21="","",Worksheet!$B$21) -> Performed By Tex-117-E: | D49: =IF(Worksheet!$B$29="","",Worksheet!$B$29) -> Average Diameter, in.: | E49: =IF(Worksheet!$J$24="","",Worksheet!$J$24) -> 7
A50: 48 | B50: =IF(Worksheet!$K$29="","",Worksheet!$K$29) ->  | C50: =IF(Worksheet!$B$21="","",Worksheet!$B$21) -> Performed By Tex-117-E: | D50: =IF(Worksheet!$B$29="","",Worksheet!$B$29) -> Average Diameter, in.: | E50: =IF(Worksheet!$K$24="","",Worksheet!$K$24) -> 8
A51: 49 | B51: =IF(Worksheet!$D$30="","",Worksheet!$D$30) ->  | C51: =IF(Worksheet!$B$21="","",Worksheet!$B$21) -> Performed By Tex-117-E: | D51: =IF(Worksheet!$B$30="","",Worksheet!$B$30) -> Circumference, in.: | E51: =IF(Worksheet!$D$24="","",Worksheet!$D$24) -> 1
A52: 50 | B52: =IF(Worksheet!$E$30="","",Worksheet!$E$30) ->  | C52: =IF(Worksheet!$B$21="","",Worksheet!$B$21) -> Performed By Tex-117-E: | D52: =IF(Worksheet!$B$30="","",Worksheet!$B$30) -> Circumference, in.: | E52: =IF(Worksheet!$E$24="","",Worksheet!$E$24) -> 2
A53: 51 | B53: =IF(Worksheet!$F$30="","",Worksheet!$F$30) ->  | C53: =IF(Worksheet!$B$21="","",Worksheet!$B$21) -> Performed By Tex-117-E: | D53: =IF(Worksheet!$B$30="","",Worksheet!$B$30) -> Circumference, in.: | E53: =IF(Worksheet!$F$24="","",Worksheet!$F$24) -> 3
A54: 52 | B54: =IF(Worksheet!$G$30="","",Worksheet!$G$30) ->  | C54: =IF(Worksheet!$B$21="","",Worksheet!$B$21) -> Performed By Tex-117-E: | D54: =IF(Worksheet!$B$30="","",Worksheet!$B$30) -> Circumference, in.: | E54: =IF(Worksheet!$G$24="","",Worksheet!$G$24) -> 4
A55: 53 | B55: =IF(Worksheet!$H$30="","",Worksheet!$H$30) ->  | C55: =IF(Worksheet!$B$21="","",Worksheet!$B$21) -> Performed By Tex-117-E: | D55: =IF(Worksheet!$B$30="","",Worksheet!$B$30) -> Circumference, in.: | E55: =IF(Worksheet!$H$24="","",Worksheet!$H$24) -> 5
A56: 54 | B56: =IF(Worksheet!$I$30="","",Worksheet!$I$30) ->  | C56: =IF(Worksheet!$B$21="","",Worksheet!$B$21) -> Performed By Tex-117-E: | D56: =IF(Worksheet!$B$30="","",Worksheet!$B$30) -> Circumference, in.: | E56: =IF(Worksheet!$I$24="","",Worksheet!$I$24) -> 6
A57: 55 | B57: =IF(Worksheet!$J$30="","",Worksheet!$J$30) ->  | C57: =IF(Worksheet!$B$21="","",Worksheet!$B$21) -> Performed By Tex-117-E: | D57: =IF(Worksheet!$B$30="","",Worksheet!$B$30) -> Circumference, in.: | E57: =IF(Worksheet!$J$24="","",Worksheet!$J$24) -> 7
A58: 56 | B58: =IF(Worksheet!$K$30="","",Worksheet!$K$30) ->  | C58: =IF(Worksheet!$B$21="","",Worksheet!$B$21) -> Performed By Tex-117-E: | D58: =IF(Worksheet!$B$30="","",Worksheet!$B$30) -> Circumference, in.: | E58: =IF(Worksheet!$K$24="","",Worksheet!$K$24) -> 8
A59: 57 | B59: =IF(Worksheet!$D$31="","",Worksheet!$D$31) ->  | C59: =IF(Worksheet!$B$21="","",Worksheet!$B$21) -> Performed By Tex-117-E: | D59: =IF(Worksheet!$B$31="","",Worksheet!$B$31) -> Area, in.^2: | E59: =IF(Worksheet!$D$24="","",Worksheet!$D$24) -> 1
A60: 58 | B60: =IF(Worksheet!$E$31="","",Worksheet!$E$31) ->  | C60: =IF(Worksheet!$B$21="","",Worksheet!$B$21) -> Performed By Tex-117-E: | D60: =IF(Worksheet!$B$31="","",Worksheet!$B$31) -> Area, in.^2: | E60: =IF(Worksheet!$E$24="","",Worksheet!$E$24) -> 2
A61: 59 | B61: =IF(Worksheet!$F$31="","",Worksheet!$F$31) ->  | C61: =IF(Worksheet!$B$21="","",Worksheet!$B$21) -> Performed By Tex-117-E: | D61: =IF(Worksheet!$B$31="","",Worksheet!$B$31) -> Area, in.^2: | E61: =IF(Worksheet!$F$24="","",Worksheet!$F$24) -> 3
A62: 60 | B62: =IF(Worksheet!$G$31="","",Worksheet!$G$31) ->  | C62: =IF(Worksheet!$B$21="","",Worksheet!$B$21) -> Performed By Tex-117-E: | D62: =IF(Worksheet!$B$31="","",Worksheet!$B$31) -> Area, in.^2: | E62: =IF(Worksheet!$G$24="","",Worksheet!$G$24) -> 4
A63: 61 | B63: =IF(Worksheet!$H$31="","",Worksheet!$H$31) ->  | C63: =IF(Worksheet!$B$21="","",Worksheet!$B$21) -> Performed By Tex-117-E: | D63: =IF(Worksheet!$B$31="","",Worksheet!$B$31) -> Area, in.^2: | E63: =IF(Worksheet!$H$24="","",Worksheet!$H$24) -> 5
A64: 62 | B64: =IF(Worksheet!$I$31="","",Worksheet!$I$31) ->  | C64: =IF(Worksheet!$B$21="","",Worksheet!$B$21) -> Performed By Tex-117-E: | D64: =IF(Worksheet!$B$31="","",Worksheet!$B$31) -> Area, in.^2: | E64: =IF(Worksheet!$I$24="","",Worksheet!$I$24) -> 6
A65: 63 | B65: =IF(Worksheet!$J$31="","",Worksheet!$J$31) ->  | C65: =IF(Worksheet!$B$21="","",Worksheet!$B$21) -> Performed By Tex-117-E: | D65: =IF(Worksheet!$B$31="","",Worksheet!$B$31) -> Area, in.^2: | E65: =IF(Worksheet!$J$24="","",Worksheet!$J$24) -> 7
A66: 64 | B66: =IF(Worksheet!$K$31="","",Worksheet!$K$31) ->  | C66: =IF(Worksheet!$B$21="","",Worksheet!$B$21) -> Performed By Tex-117-E: | D66: =IF(Worksheet!$B$31="","",Worksheet!$B$31) -> Area, in.^2: | E66: =IF(Worksheet!$K$24="","",Worksheet!$K$24) -> 8
A67: 65 | B67: =IF(Worksheet!$D$32="","",Worksheet!$D$32) ->  | C67: =IF(Worksheet!$B$21="","",Worksheet!$B$21) -> Performed By Tex-117-E: | D67: =IF(Worksheet!$B$32="","",Worksheet!$B$32) -> Avg. Cross Sectional Area, in^2: | E67: =IF(Worksheet!$D$24="","",Worksheet!$D$24) -> 1
A68: 66 | B68: =IF(Worksheet!$E$32="","",Worksheet!$E$32) ->  | C68: =IF(Worksheet!$B$21="","",Worksheet!$B$21) -> Performed By Tex-117-E: | D68: =IF(Worksheet!$B$32="","",Worksheet!$B$32) -> Avg. Cross Sectional Area, in^2: | E68: =IF(Worksheet!$E$24="","",Worksheet!$E$24) -> 2
A69: 67 | B69: =IF(Worksheet!$F$32="","",Worksheet!$F$32) ->  | C69: =IF(Worksheet!$B$21="","",Worksheet!$B$21) -> Performed By Tex-117-E: | D69: =IF(Worksheet!$B$32="","",Worksheet!$B$32) -> Avg. Cross Sectional Area, in^2: | E69: =IF(Worksheet!$F$24="","",Worksheet!$F$24) -> 3
A70: 68 | B70: =IF(Worksheet!$G$32="","",Worksheet!$G$32) ->  | C70: =IF(Worksheet!$B$21="","",Worksheet!$B$21) -> Performed By Tex-117-E: | D70: =IF(Worksheet!$B$32="","",Worksheet!$B$32) -> Avg. Cross Sectional Area, in^2: | E70: =IF(Worksheet!$G$24="","",Worksheet!$G$24) -> 4
A71: 69 | B71: =IF(Worksheet!$H$32="","",Worksheet!$H$32) ->  | C71: =IF(Worksheet!$B$21="","",Worksheet!$B$21) -> Performed By Tex-117-E: | D71: =IF(Worksheet!$B$32="","",Worksheet!$B$32) -> Avg. Cross Sectional Area, in^2: | E71: =IF(Worksheet!$H$24="","",Worksheet!$H$24) -> 5
A72: 70 | B72: =IF(Worksheet!$I$32="","",Worksheet!$I$32) ->  | C72: =IF(Worksheet!$B$21="","",Worksheet!$B$21) -> Performed By Tex-117-E: | D72: =IF(Worksheet!$B$32="","",Worksheet!$B$32) -> Avg. Cross Sectional Area, in^2: | E72: =IF(Worksheet!$I$24="","",Worksheet!$I$24) -> 6
A73: 71 | B73: =IF(Worksheet!$J$32="","",Worksheet!$J$32) ->  | C73: =IF(Worksheet!$B$21="","",Worksheet!$B$21) -> Performed By Tex-117-E: | D73: =IF(Worksheet!$B$32="","",Worksheet!$B$32) -> Avg. Cross Sectional Area, in^2: | E73: =IF(Worksheet!$J$24="","",Worksheet!$J$24) -> 7
A74: 72 | B74: =IF(Worksheet!$K$32="","",Worksheet!$K$32) ->  | C74: =IF(Worksheet!$B$21="","",Worksheet!$B$21) -> Performed By Tex-117-E: | D74: =IF(Worksheet!$B$32="","",Worksheet!$B$32) -> Avg. Cross Sectional Area, in^2: | E74: =IF(Worksheet!$K$24="","",Worksheet!$K$24) -> 8
A75: 73 | B75: =IF(Worksheet!$D$33="","",Worksheet!$D$33) ->  | C75: =IF(Worksheet!$B$21="","",Worksheet!$B$21) -> Performed By Tex-117-E: | D75: =IF(Worksheet!$B$33="","",Worksheet!$B$33) -> Lateral Pressure, psi.: | E75: =IF(Worksheet!$D$24="","",Worksheet!$D$24) -> 1
A76: 74 | B76: =IF(Worksheet!$E$33="","",Worksheet!$E$33) ->  | C76: =IF(Worksheet!$B$21="","",Worksheet!$B$21) -> Performed By Tex-117-E: | D76: =IF(Worksheet!$B$33="","",Worksheet!$B$33) -> Lateral Pressure, psi.: | E76: =IF(Worksheet!$E$24="","",Worksheet!$E$24) -> 2
A77: 75 | B77: =IF(Worksheet!$F$33="","",Worksheet!$F$33) ->  | C77: =IF(Worksheet!$B$21="","",Worksheet!$B$21) -> Performed By Tex-117-E: | D77: =IF(Worksheet!$B$33="","",Worksheet!$B$33) -> Lateral Pressure, psi.: | E77: =IF(Worksheet!$F$24="","",Worksheet!$F$24) -> 3
A78: 76 | B78: =IF(Worksheet!$G$33="","",Worksheet!$G$33) ->  | C78: =IF(Worksheet!$B$21="","",Worksheet!$B$21) -> Performed By Tex-117-E: | D78: =IF(Worksheet!$B$33="","",Worksheet!$B$33) -> Lateral Pressure, psi.: | E78: =IF(Worksheet!$G$24="","",Worksheet!$G$24) -> 4
A79: 77 | B79: =IF(Worksheet!$H$33="","",Worksheet!$H$33) ->  | C79: =IF(Worksheet!$B$21="","",Worksheet!$B$21) -> Performed By Tex-117-E: | D79: =IF(Worksheet!$B$33="","",Worksheet!$B$33) -> Lateral Pressure, psi.: | E79: =IF(Worksheet!$H$24="","",Worksheet!$H$24) -> 5
A80: 78 | B80: =IF(Worksheet!$I$33="","",Worksheet!$I$33) ->  | C80: =IF(Worksheet!$B$21="","",Worksheet!$B$21) -> Performed By Tex-117-E: | D80: =IF(Worksheet!$B$33="","",Worksheet!$B$33) -> Lateral Pressure, psi.: | E80: =IF(Worksheet!$I$24="","",Worksheet!$I$24) -> 6
A81: 79 | B81: =IF(Worksheet!$J$33="","",Worksheet!$J$33) ->  | C81: =IF(Worksheet!$B$21="","",Worksheet!$B$21) -> Performed By Tex-117-E: | D81: =IF(Worksheet!$B$33="","",Worksheet!$B$33) -> Lateral Pressure, psi.: | E81: =IF(Worksheet!$J$24="","",Worksheet!$J$24) -> 7
A82: 80 | B82: =IF(Worksheet!$K$33="","",Worksheet!$K$33) ->  | C82: =IF(Worksheet!$B$21="","",Worksheet!$B$21) -> Performed By Tex-117-E: | D82: =IF(Worksheet!$B$33="","",Worksheet!$B$33) -> Lateral Pressure, psi.: | E82: =IF(Worksheet!$K$24="","",Worksheet!$K$24) -> 8
A83: 81 | B83: =IF(Worksheet!$D$34="","",Worksheet!$D$34) ->  | C83: =IF(Worksheet!$B$21="","",Worksheet!$B$21) -> Performed By Tex-117-E: | D83: =IF(Worksheet!$B$34="","",Worksheet!$B$34) -> Calibration Factor: | E83: =IF(Worksheet!$D$24="","",Worksheet!$D$24) -> 1
A84: 82 | B84: =IF(Worksheet!$E$34="","",Worksheet!$E$34) ->  | C84: =IF(Worksheet!$B$21="","",Worksheet!$B$21) -> Performed By Tex-117-E: | D84: =IF(Worksheet!$B$34="","",Worksheet!$B$34) -> Calibration Factor: | E84: =IF(Worksheet!$E$24="","",Worksheet!$E$24) -> 2
A85: 83 | B85: =IF(Worksheet!$F$34="","",Worksheet!$F$34) ->  | C85: =IF(Worksheet!$B$21="","",Worksheet!$B$21) -> Performed By Tex-117-E: | D85: =IF(Worksheet!$B$34="","",Worksheet!$B$34) -> Calibration Factor: | E85: =IF(Worksheet!$F$24="","",Worksheet!$F$24) -> 3
A86: 84 | B86: =IF(Worksheet!$G$34="","",Worksheet!$G$34) ->  | C86: =IF(Worksheet!$B$21="","",Worksheet!$B$21) -> Performed By Tex-117-E: | D86: =IF(Worksheet!$B$34="","",Worksheet!$B$34) -> Calibration Factor: | E86: =IF(Worksheet!$G$24="","",Worksheet!$G$24) -> 4
A87: 85 | B87: =IF(Worksheet!$H$34="","",Worksheet!$H$34) ->  | C87: =IF(Worksheet!$B$21="","",Worksheet!$B$21) -> Performed By Tex-117-E: | D87: =IF(Worksheet!$B$34="","",Worksheet!$B$34) -> Calibration Factor: | E87: =IF(Worksheet!$H$24="","",Worksheet!$H$24) -> 5
A88: 86 | B88: =IF(Worksheet!$I$34="","",Worksheet!$I$34) ->  | C88: =IF(Worksheet!$B$21="","",Worksheet!$B$21) -> Performed By Tex-117-E: | D88: =IF(Worksheet!$B$34="","",Worksheet!$B$34) -> Calibration Factor: | E88: =IF(Worksheet!$I$24="","",Worksheet!$I$24) -> 6
A89: 87 | B89: =IF(Worksheet!$J$34="","",Worksheet!$J$34) ->  | C89: =IF(Worksheet!$B$21="","",Worksheet!$B$21) -> Performed By Tex-117-E: | D89: =IF(Worksheet!$B$34="","",Worksheet!$B$34) -> Calibration Factor: | E89: =IF(Worksheet!$J$24="","",Worksheet!$J$24) -> 7
A90: 88 | B90: =IF(Worksheet!$K$34="","",Worksheet!$K$34) ->  | C90: =IF(Worksheet!$B$21="","",Worksheet!$B$21) -> Performed By Tex-117-E: | D90: =IF(Worksheet!$B$34="","",Worksheet!$B$34) -> Calibration Factor: | E90: =IF(Worksheet!$K$24="","",Worksheet!$K$24) -> 8
A91: 89 | B91: =IF(Worksheet!$D$35="","",Worksheet!$D$35) ->  | C91: =IF(Worksheet!$B$21="","",Worksheet!$B$21) -> Performed By Tex-117-E: | D91: =IF(Worksheet!$B$35="","",Worksheet!$B$35) -> Excitation: | E91: =IF(Worksheet!$D$24="","",Worksheet!$D$24) -> 1
A92: 90 | B92: =IF(Worksheet!$E$35="","",Worksheet!$E$35) ->  | C92: =IF(Worksheet!$B$21="","",Worksheet!$B$21) -> Performed By Tex-117-E: | D92: =IF(Worksheet!$B$35="","",Worksheet!$B$35) -> Excitation: | E92: =IF(Worksheet!$E$24="","",Worksheet!$E$24) -> 2
A93: 91 | B93: =IF(Worksheet!$F$35="","",Worksheet!$F$35) ->  | C93: =IF(Worksheet!$B$21="","",Worksheet!$B$21) -> Performed By Tex-117-E: | D93: =IF(Worksheet!$B$35="","",Worksheet!$B$35) -> Excitation: | E93: =IF(Worksheet!$F$24="","",Worksheet!$F$24) -> 3
A94: 92 | B94: =IF(Worksheet!$G$35="","",Worksheet!$G$35) ->  | C94: =IF(Worksheet!$B$21="","",Worksheet!$B$21) -> Performed By Tex-117-E: | D94: =IF(Worksheet!$B$35="","",Worksheet!$B$35) -> Excitation: | E94: =IF(Worksheet!$G$24="","",Worksheet!$G$24) -> 4
A95: 93 | B95: =IF(Worksheet!$H$35="","",Worksheet!$H$35) ->  | C95: =IF(Worksheet!$B$21="","",Worksheet!$B$21) -> Performed By Tex-117-E: | D95: =IF(Worksheet!$B$35="","",Worksheet!$B$35) -> Excitation: | E95: =IF(Worksheet!$H$24="","",Worksheet!$H$24) -> 5
A96: 94 | B96: =IF(Worksheet!$I$35="","",Worksheet!$I$35) ->  | C96: =IF(Worksheet!$B$21="","",Worksheet!$B$21) -> Performed By Tex-117-E: | D96: =IF(Worksheet!$B$35="","",Worksheet!$B$35) -> Excitation: | E96: =IF(Worksheet!$I$24="","",Worksheet!$I$24) -> 6
A97: 95 | B97: =IF(Worksheet!$J$35="","",Worksheet!$J$35) ->  | C97: =IF(Worksheet!$B$21="","",Worksheet!$B$21) -> Performed By Tex-117-E: | D97: =IF(Worksheet!$B$35="","",Worksheet!$B$35) -> Excitation: | E97: =IF(Worksheet!$J$24="","",Worksheet!$J$24) -> 7
A98: 96 | B98: =IF(Worksheet!$K$35="","",Worksheet!$K$35) ->  | C98: =IF(Worksheet!$B$21="","",Worksheet!$B$21) -> Performed By Tex-117-E: | D98: =IF(Worksheet!$B$35="","",Worksheet!$B$35) -> Excitation: | E98: =IF(Worksheet!$K$24="","",Worksheet!$K$24) -> 8
A99: 97 | B99: =IF(Worksheet!$D$36="","",Worksheet!$D$36) ->  | C99: =IF(Worksheet!$B$21="","",Worksheet!$B$21) -> Performed By Tex-117-E: | D99: =IF(Worksheet!$B$36="","",Worksheet!$B$36) -> Zero: | E99: =IF(Worksheet!$D$24="","",Worksheet!$D$24) -> 1
A100: 98 | B100: =IF(Worksheet!$E$36="","",Worksheet!$E$36) ->  | C100: =IF(Worksheet!$B$21="","",Worksheet!$B$21) -> Performed By Tex-117-E: | D100: =IF(Worksheet!$B$36="","",Worksheet!$B$36) -> Zero: | E100: =IF(Worksheet!$E$24="","",Worksheet!$E$24) -> 2
A101: 99 | B101: =IF(Worksheet!$F$36="","",Worksheet!$F$36) ->  | C101: =IF(Worksheet!$B$21="","",Worksheet!$B$21) -> Performed By Tex-117-E: | D101: =IF(Worksheet!$B$36="","",Worksheet!$B$36) -> Zero: | E101: =IF(Worksheet!$F$24="","",Worksheet!$F$24) -> 3
A102: 100 | B102: =IF(Worksheet!$G$36="","",Worksheet!$G$36) ->  | C102: =IF(Worksheet!$B$21="","",Worksheet!$B$21) -> Performed By Tex-117-E: | D102: =IF(Worksheet!$B$36="","",Worksheet!$B$36) -> Zero: | E102: =IF(Worksheet!$G$24="","",Worksheet!$G$24) -> 4
A103: 101 | B103: =IF(Worksheet!$H$36="","",Worksheet!$H$36) ->  | C103: =IF(Worksheet!$B$21="","",Worksheet!$B$21) -> Performed By Tex-117-E: | D103: =IF(Worksheet!$B$36="","",Worksheet!$B$36) -> Zero: | E103: =IF(Worksheet!$H$24="","",Worksheet!$H$24) -> 5
A104: 102 | B104: =IF(Worksheet!$I$36="","",Worksheet!$I$36) ->  | C104: =IF(Worksheet!$B$21="","",Worksheet!$B$21) -> Performed By Tex-117-E: | D104: =IF(Worksheet!$B$36="","",Worksheet!$B$36) -> Zero: | E104: =IF(Worksheet!$I$24="","",Worksheet!$I$24) -> 6
A105: 103 | B105: =IF(Worksheet!$J$36="","",Worksheet!$J$36) ->  | C105: =IF(Worksheet!$B$21="","",Worksheet!$B$21) -> Performed By Tex-117-E: | D105: =IF(Worksheet!$B$36="","",Worksheet!$B$36) -> Zero: | E105: =IF(Worksheet!$J$24="","",Worksheet!$J$24) -> 7
A106: 104 | B106: =IF(Worksheet!$K$36="","",Worksheet!$K$36) ->  | C106: =IF(Worksheet!$B$21="","",Worksheet!$B$21) -> Performed By Tex-117-E: | D106: =IF(Worksheet!$B$36="","",Worksheet!$B$36) -> Zero: | E106: =IF(Worksheet!$K$24="","",Worksheet!$K$24) -> 8
A107: 105 | B107: =IF(Worksheet!$D$37="","",Worksheet!$D$37) ->  | C107: =IF(Worksheet!$B$21="","",Worksheet!$B$21) -> Performed By Tex-117-E: | D107: =IF(Worksheet!$B$37="","",Worksheet!$B$37) -> Ring Factor, lbs./div | E107: =IF(Worksheet!$D$24="","",Worksheet!$D$24) -> 1
A108: 106 | B108: =IF(Worksheet!$E$37="","",Worksheet!$E$37) ->  | C108: =IF(Worksheet!$B$21="","",Worksheet!$B$21) -> Performed By Tex-117-E: | D108: =IF(Worksheet!$B$37="","",Worksheet!$B$37) -> Ring Factor, lbs./div | E108: =IF(Worksheet!$E$24="","",Worksheet!$E$24) -> 2
A109: 107 | B109: =IF(Worksheet!$F$37="","",Worksheet!$F$37) ->  | C109: =IF(Worksheet!$B$21="","",Worksheet!$B$21) -> Performed By Tex-117-E: | D109: =IF(Worksheet!$B$37="","",Worksheet!$B$37) -> Ring Factor, lbs./div | E109: =IF(Worksheet!$F$24="","",Worksheet!$F$24) -> 3
A110: 108 | B110: =IF(Worksheet!$G$37="","",Worksheet!$G$37) ->  | C110: =IF(Worksheet!$B$21="","",Worksheet!$B$21) -> Performed By Tex-117-E: | D110: =IF(Worksheet!$B$37="","",Worksheet!$B$37) -> Ring Factor, lbs./div | E110: =IF(Worksheet!$G$24="","",Worksheet!$G$24) -> 4
A111: 109 | B111: =IF(Worksheet!$H$37="","",Worksheet!$H$37) ->  | C111: =IF(Worksheet!$B$21="","",Worksheet!$B$21) -> Performed By Tex-117-E: | D111: =IF(Worksheet!$B$37="","",Worksheet!$B$37) -> Ring Factor, lbs./div | E111: =IF(Worksheet!$H$24="","",Worksheet!$H$24) -> 5
A112: 110 | B112: =IF(Worksheet!$I$37="","",Worksheet!$I$37) ->  | C112: =IF(Worksheet!$B$21="","",Worksheet!$B$21) -> Performed By Tex-117-E: | D112: =IF(Worksheet!$B$37="","",Worksheet!$B$37) -> Ring Factor, lbs./div | E112: =IF(Worksheet!$I$24="","",Worksheet!$I$24) -> 6
A113: 111 | B113: =IF(Worksheet!$J$37="","",Worksheet!$J$37) ->  | C113: =IF(Worksheet!$B$21="","",Worksheet!$B$21) -> Performed By Tex-117-E: | D113: =IF(Worksheet!$B$37="","",Worksheet!$B$37) -> Ring Factor, lbs./div | E113: =IF(Worksheet!$J$24="","",Worksheet!$J$24) -> 7
A114: 112 | B114: =IF(Worksheet!$K$37="","",Worksheet!$K$37) ->  | C114: =IF(Worksheet!$B$21="","",Worksheet!$B$21) -> Performed By Tex-117-E: | D114: =IF(Worksheet!$B$37="","",Worksheet!$B$37) -> Ring Factor, lbs./div | E114: =IF(Worksheet!$K$24="","",Worksheet!$K$24) -> 8
A115: 113 | B115: =IF(Worksheet!$D$38="","",Worksheet!$D$38) ->  | C115: =IF(Worksheet!$B$21="","",Worksheet!$B$21) -> Performed By Tex-117-E: | D115: =IF(Worksheet!$B$38="","",Worksheet!$B$38) -> Dead Load, lbs.: | E115: =IF(Worksheet!$D$24="","",Worksheet!$D$24) -> 1
A116: 114 | B116: =IF(Worksheet!$E$38="","",Worksheet!$E$38) ->  | C116: =IF(Worksheet!$B$21="","",Worksheet!$B$21) -> Performed By Tex-117-E: | D116: =IF(Worksheet!$B$38="","",Worksheet!$B$38) -> Dead Load, lbs.: | E116: =IF(Worksheet!$E$24="","",Worksheet!$E$24) -> 2
A117: 115 | B117: =IF(Worksheet!$F$38="","",Worksheet!$F$38) ->  | C117: =IF(Worksheet!$B$21="","",Worksheet!$B$21) -> Performed By Tex-117-E: | D117: =IF(Worksheet!$B$38="","",Worksheet!$B$38) -> Dead Load, lbs.: | E117: =IF(Worksheet!$F$24="","",Worksheet!$F$24) -> 3
A118: 116 | B118: =IF(Worksheet!$G$38="","",Worksheet!$G$38) ->  | C118: =IF(Worksheet!$B$21="","",Worksheet!$B$21) -> Performed By Tex-117-E: | D118: =IF(Worksheet!$B$38="","",Worksheet!$B$38) -> Dead Load, lbs.: | E118: =IF(Worksheet!$G$24="","",Worksheet!$G$24) -> 4
A119: 117 | B119: =IF(Worksheet!$H$38="","",Worksheet!$H$38) ->  | C119: =IF(Worksheet!$B$21="","",Worksheet!$B$21) -> Performed By Tex-117-E: | D119: =IF(Worksheet!$B$38="","",Worksheet!$B$38) -> Dead Load, lbs.: | E119: =IF(Worksheet!$H$24="","",Worksheet!$H$24) -> 5
A120: 118 | B120: =IF(Worksheet!$I$38="","",Worksheet!$I$38) ->  | C120: =IF(Worksheet!$B$21="","",Worksheet!$B$21) -> Performed By Tex-117-E: | D120: =IF(Worksheet!$B$38="","",Worksheet!$B$38) -> Dead Load, lbs.: | E120: =IF(Worksheet!$I$24="","",Worksheet!$I$24) -> 6
A121: 119 | B121: =IF(Worksheet!$J$38="","",Worksheet!$J$38) ->  | C121: =IF(Worksheet!$B$21="","",Worksheet!$B$21) -> Performed By Tex-117-E: | D121: =IF(Worksheet!$B$38="","",Worksheet!$B$38) -> Dead Load, lbs.: | E121: =IF(Worksheet!$J$24="","",Worksheet!$J$24) -> 7
A122: 120 | B122: =IF(Worksheet!$K$38="","",Worksheet!$K$38) ->  | C122: =IF(Worksheet!$B$21="","",Worksheet!$B$21) -> Performed By Tex-117-E: | D122: =IF(Worksheet!$B$38="","",Worksheet!$B$38) -> Dead Load, lbs.: | E122: =IF(Worksheet!$K$24="","",Worksheet!$K$24) -> 8
A123: 121 | B123: =IF(Worksheet!$D$39="","",Worksheet!$D$39) ->  | C123: =IF(Worksheet!$B$21="","",Worksheet!$B$21) -> Performed By Tex-117-E: | D123: =IF(Worksheet!$B$39="","",Worksheet!$B$39) -> Piston Correction, lbs.: | E123: =IF(Worksheet!$D$24="","",Worksheet!$D$24) -> 1
A124: 122 | B124: =IF(Worksheet!$E$39="","",Worksheet!$E$39) ->  | C124: =IF(Worksheet!$B$21="","",Worksheet!$B$21) -> Performed By Tex-117-E: | D124: =IF(Worksheet!$B$39="","",Worksheet!$B$39) -> Piston Correction, lbs.: | E124: =IF(Worksheet!$E$24="","",Worksheet!$E$24) -> 2
A125: 123 | B125: =IF(Worksheet!$F$39="","",Worksheet!$F$39) ->  | C125: =IF(Worksheet!$B$21="","",Worksheet!$B$21) -> Performed By Tex-117-E: | D125: =IF(Worksheet!$B$39="","",Worksheet!$B$39) -> Piston Correction, lbs.: | E125: =IF(Worksheet!$F$24="","",Worksheet!$F$24) -> 3
A126: 124 | B126: =IF(Worksheet!$G$39="","",Worksheet!$G$39) ->  | C126: =IF(Worksheet!$B$21="","",Worksheet!$B$21) -> Performed By Tex-117-E: | D126: =IF(Worksheet!$B$39="","",Worksheet!$B$39) -> Piston Correction, lbs.: | E126: =IF(Worksheet!$G$24="","",Worksheet!$G$24) -> 4
A127: 125 | B127: =IF(Worksheet!$H$39="","",Worksheet!$H$39) ->  | C127: =IF(Worksheet!$B$21="","",Worksheet!$B$21) -> Performed By Tex-117-E: | D127: =IF(Worksheet!$B$39="","",Worksheet!$B$39) -> Piston Correction, lbs.: | E127: =IF(Worksheet!$H$24="","",Worksheet!$H$24) -> 5
A128: 126 | B128: =IF(Worksheet!$I$39="","",Worksheet!$I$39) ->  | C128: =IF(Worksheet!$B$21="","",Worksheet!$B$21) -> Performed By Tex-117-E: | D128: =IF(Worksheet!$B$39="","",Worksheet!$B$39) -> Piston Correction, lbs.: | E128: =IF(Worksheet!$I$24="","",Worksheet!$I$24) -> 6
A129: 127 | B129: =IF(Worksheet!$J$39="","",Worksheet!$J$39) ->  | C129: =IF(Worksheet!$B$21="","",Worksheet!$B$21) -> Performed By Tex-117-E: | D129: =IF(Worksheet!$B$39="","",Worksheet!$B$39) -> Piston Correction, lbs.: | E129: =IF(Worksheet!$J$24="","",Worksheet!$J$24) -> 7
A130: 128 | B130: =IF(Worksheet!$K$39="","",Worksheet!$K$39) ->  | C130: =IF(Worksheet!$B$21="","",Worksheet!$B$21) -> Performed By Tex-117-E: | D130: =IF(Worksheet!$B$39="","",Worksheet!$B$39) -> Piston Correction, lbs.: | E130: =IF(Worksheet!$K$24="","",Worksheet!$K$24) -> 8
A131: 129 | B131: =IF(Worksheet!$D$40="","",Worksheet!$D$40) ->  | C131: =IF(Worksheet!$B$21="","",Worksheet!$B$21) -> Performed By Tex-117-E: | D131: =IF(Worksheet!$B$40="","",Worksheet!$B$40) -> Max. Load Reading, div.: | E131: =IF(Worksheet!$D$24="","",Worksheet!$D$24) -> 1
A132: 130 | B132: =IF(Worksheet!$E$40="","",Worksheet!$E$40) ->  | C132: =IF(Worksheet!$B$21="","",Worksheet!$B$21) -> Performed By Tex-117-E: | D132: =IF(Worksheet!$B$40="","",Worksheet!$B$40) -> Max. Load Reading, div.: | E132: =IF(Worksheet!$E$24="","",Worksheet!$E$24) -> 2
A133: 131 | B133: =IF(Worksheet!$F$40="","",Worksheet!$F$40) ->  | C133: =IF(Worksheet!$B$21="","",Worksheet!$B$21) -> Performed By Tex-117-E: | D133: =IF(Worksheet!$B$40="","",Worksheet!$B$40) -> Max. Load Reading, div.: | E133: =IF(Worksheet!$F$24="","",Worksheet!$F$24) -> 3
A134: 132 | B134: =IF(Worksheet!$G$40="","",Worksheet!$G$40) ->  | C134: =IF(Worksheet!$B$21="","",Worksheet!$B$21) -> Performed By Tex-117-E: | D134: =IF(Worksheet!$B$40="","",Worksheet!$B$40) -> Max. Load Reading, div.: | E134: =IF(Worksheet!$G$24="","",Worksheet!$G$24) -> 4
A135: 133 | B135: =IF(Worksheet!$H$40="","",Worksheet!$H$40) ->  | C135: =IF(Worksheet!$B$21="","",Worksheet!$B$21) -> Performed By Tex-117-E: | D135: =IF(Worksheet!$B$40="","",Worksheet!$B$40) -> Max. Load Reading, div.: | E135: =IF(Worksheet!$H$24="","",Worksheet!$H$24) -> 5
A136: 134 | B136: =IF(Worksheet!$I$40="","",Worksheet!$I$40) ->  | C136: =IF(Worksheet!$B$21="","",Worksheet!$B$21) -> Performed By Tex-117-E: | D136: =IF(Worksheet!$B$40="","",Worksheet!$B$40) -> Max. Load Reading, div.: | E136: =IF(Worksheet!$I$24="","",Worksheet!$I$24) -> 6
A137: 135 | B137: =IF(Worksheet!$J$40="","",Worksheet!$J$40) ->  | C137: =IF(Worksheet!$B$21="","",Worksheet!$B$21) -> Performed By Tex-117-E: | D137: =IF(Worksheet!$B$40="","",Worksheet!$B$40) -> Max. Load Reading, div.: | E137: =IF(Worksheet!$J$24="","",Worksheet!$J$24) -> 7
A138: 136 | B138: =IF(Worksheet!$K$40="","",Worksheet!$K$40) ->  | C138: =IF(Worksheet!$B$21="","",Worksheet!$B$21) -> Performed By Tex-117-E: | D138: =IF(Worksheet!$B$40="","",Worksheet!$B$40) -> Max. Load Reading, div.: | E138: =IF(Worksheet!$K$24="","",Worksheet!$K$24) -> 8
A139: 137 | B139: =IF(Worksheet!$D$41="","",Worksheet!$D$41) ->  | C139: =IF(Worksheet!$B$21="","",Worksheet!$B$21) -> Performed By Tex-117-E: | D139: =IF(Worksheet!$B$41="","",Worksheet!$B$41) -> Max Load, lbs.: | E139: =IF(Worksheet!$D$24="","",Worksheet!$D$24) -> 1
A140: 138 | B140: =IF(Worksheet!$E$41="","",Worksheet!$E$41) ->  | C140: =IF(Worksheet!$B$21="","",Worksheet!$B$21) -> Performed By Tex-117-E: | D140: =IF(Worksheet!$B$41="","",Worksheet!$B$41) -> Max Load, lbs.: | E140: =IF(Worksheet!$E$24="","",Worksheet!$E$24) -> 2
A141: 139 | B141: =IF(Worksheet!$F$41="","",Worksheet!$F$41) ->  | C141: =IF(Worksheet!$B$21="","",Worksheet!$B$21) -> Performed By Tex-117-E: | D141: =IF(Worksheet!$B$41="","",Worksheet!$B$41) -> Max Load, lbs.: | E141: =IF(Worksheet!$F$24="","",Worksheet!$F$24) -> 3
A142: 140 | B142: =IF(Worksheet!$G$41="","",Worksheet!$G$41) ->  | C142: =IF(Worksheet!$B$21="","",Worksheet!$B$21) -> Performed By Tex-117-E: | D142: =IF(Worksheet!$B$41="","",Worksheet!$B$41) -> Max Load, lbs.: | E142: =IF(Worksheet!$G$24="","",Worksheet!$G$24) -> 4
A143: 141 | B143: =IF(Worksheet!$H$41="","",Worksheet!$H$41) ->  | C143: =IF(Worksheet!$B$21="","",Worksheet!$B$21) -> Performed By Tex-117-E: | D143: =IF(Worksheet!$B$41="","",Worksheet!$B$41) -> Max Load, lbs.: | E143: =IF(Worksheet!$H$24="","",Worksheet!$H$24) -> 5
A144: 142 | B144: =IF(Worksheet!$I$41="","",Worksheet!$I$41) ->  | C144: =IF(Worksheet!$B$21="","",Worksheet!$B$21) -> Performed By Tex-117-E: | D144: =IF(Worksheet!$B$41="","",Worksheet!$B$41) -> Max Load, lbs.: | E144: =IF(Worksheet!$I$24="","",Worksheet!$I$24) -> 6
A145: 143 | B145: =IF(Worksheet!$J$41="","",Worksheet!$J$41) ->  | C145: =IF(Worksheet!$B$21="","",Worksheet!$B$21) -> Performed By Tex-117-E: | D145: =IF(Worksheet!$B$41="","",Worksheet!$B$41) -> Max Load, lbs.: | E145: =IF(Worksheet!$J$24="","",Worksheet!$J$24) -> 7
A146: 144 | B146: =IF(Worksheet!$K$41="","",Worksheet!$K$41) ->  | C146: =IF(Worksheet!$B$21="","",Worksheet!$B$21) -> Performed By Tex-117-E: | D146: =IF(Worksheet!$B$41="","",Worksheet!$B$41) -> Max Load, lbs.: | E146: =IF(Worksheet!$K$24="","",Worksheet!$K$24) -> 8
A147: 145 | B147: =IF(Worksheet!$D$42="","",Worksheet!$D$42) ->  | C147: =IF(Worksheet!$B$21="","",Worksheet!$B$21) -> Performed By Tex-117-E: | D147: =IF(Worksheet!$B$42="","",Worksheet!$B$42) -> Deformation at Max Load, in.: | E147: =IF(Worksheet!$D$24="","",Worksheet!$D$24) -> 1
A148: 146 | B148: =IF(Worksheet!$E$42="","",Worksheet!$E$42) ->  | C148: =IF(Worksheet!$B$21="","",Worksheet!$B$21) -> Performed By Tex-117-E: | D148: =IF(Worksheet!$B$42="","",Worksheet!$B$42) -> Deformation at Max Load, in.: | E148: =IF(Worksheet!$E$24="","",Worksheet!$E$24) -> 2
A149: 147 | B149: =IF(Worksheet!$F$42="","",Worksheet!$F$42) ->  | C149: =IF(Worksheet!$B$21="","",Worksheet!$B$21) -> Performed By Tex-117-E: | D149: =IF(Worksheet!$B$42="","",Worksheet!$B$42) -> Deformation at Max Load, in.: | E149: =IF(Worksheet!$F$24="","",Worksheet!$F$24) -> 3
A150: 148 | B150: =IF(Worksheet!$G$42="","",Worksheet!$G$42) ->  | C150: =IF(Worksheet!$B$21="","",Worksheet!$B$21) -> Performed By Tex-117-E: | D150: =IF(Worksheet!$B$42="","",Worksheet!$B$42) -> Deformation at Max Load, in.: | E150: =IF(Worksheet!$G$24="","",Worksheet!$G$24) -> 4
A151: 149 | B151: =IF(Worksheet!$H$42="","",Worksheet!$H$42) ->  | C151: =IF(Worksheet!$B$21="","",Worksheet!$B$21) -> Performed By Tex-117-E: | D151: =IF(Worksheet!$B$42="","",Worksheet!$B$42) -> Deformation at Max Load, in.: | E151: =IF(Worksheet!$H$24="","",Worksheet!$H$24) -> 5
A152: 150 | B152: =IF(Worksheet!$I$42="","",Worksheet!$I$42) ->  | C152: =IF(Worksheet!$B$21="","",Worksheet!$B$21) -> Performed By Tex-117-E: | D152: =IF(Worksheet!$B$42="","",Worksheet!$B$42) -> Deformation at Max Load, in.: | E152: =IF(Worksheet!$I$24="","",Worksheet!$I$24) -> 6
A153: 151 | B153: =IF(Worksheet!$J$42="","",Worksheet!$J$42) ->  | C153: =IF(Worksheet!$B$21="","",Worksheet!$B$21) -> Performed By Tex-117-E: | D153: =IF(Worksheet!$B$42="","",Worksheet!$B$42) -> Deformation at Max Load, in.: | E153: =IF(Worksheet!$J$24="","",Worksheet!$J$24) -> 7
A154: 152 | B154: =IF(Worksheet!$K$42="","",Worksheet!$K$42) ->  | C154: =IF(Worksheet!$B$21="","",Worksheet!$B$21) -> Performed By Tex-117-E: | D154: =IF(Worksheet!$B$42="","",Worksheet!$B$42) -> Deformation at Max Load, in.: | E154: =IF(Worksheet!$K$24="","",Worksheet!$K$24) -> 8
A155: 153 | B155: =IF(Worksheet!$D$43="","",Worksheet!$D$43) ->  | C155: =IF(Worksheet!$B$21="","",Worksheet!$B$21) -> Performed By Tex-117-E: | D155: =IF(Worksheet!$B$43="","",Worksheet!$B$43) -> Max. Load Reading, div. | E155: =IF(Worksheet!$D$24="","",Worksheet!$D$24) -> 1
A156: 154 | B156: =IF(Worksheet!$E$43="","",Worksheet!$E$43) ->  | C156: =IF(Worksheet!$B$21="","",Worksheet!$B$21) -> Performed By Tex-117-E: | D156: =IF(Worksheet!$B$43="","",Worksheet!$B$43) -> Max. Load Reading, div. | E156: =IF(Worksheet!$E$24="","",Worksheet!$E$24) -> 2
A157: 155 | B157: =IF(Worksheet!$F$43="","",Worksheet!$F$43) ->  | C157: =IF(Worksheet!$B$21="","",Worksheet!$B$21) -> Performed By Tex-117-E: | D157: =IF(Worksheet!$B$43="","",Worksheet!$B$43) -> Max. Load Reading, div. | E157: =IF(Worksheet!$F$24="","",Worksheet!$F$24) -> 3
A158: 156 | B158: =IF(Worksheet!$G$43="","",Worksheet!$G$43) ->  | C158: =IF(Worksheet!$B$21="","",Worksheet!$B$21) -> Performed By Tex-117-E: | D158: =IF(Worksheet!$B$43="","",Worksheet!$B$43) -> Max. Load Reading, div. | E158: =IF(Worksheet!$G$24="","",Worksheet!$G$24) -> 4
A159: 157 | B159: =IF(Worksheet!$H$43="","",Worksheet!$H$43) ->  | C159: =IF(Worksheet!$B$21="","",Worksheet!$B$21) -> Performed By Tex-117-E: | D159: =IF(Worksheet!$B$43="","",Worksheet!$B$43) -> Max. Load Reading, div. | E159: =IF(Worksheet!$H$24="","",Worksheet!$H$24) -> 5
A160: 158 | B160: =IF(Worksheet!$I$43="","",Worksheet!$I$43) ->  | C160: =IF(Worksheet!$B$21="","",Worksheet!$B$21) -> Performed By Tex-117-E: | D160: =IF(Worksheet!$B$43="","",Worksheet!$B$43) -> Max. Load Reading, div. | E160: =IF(Worksheet!$I$24="","",Worksheet!$I$24) -> 6
A161: 159 | B161: =IF(Worksheet!$J$43="","",Worksheet!$J$43) ->  | C161: =IF(Worksheet!$B$21="","",Worksheet!$B$21) -> Performed By Tex-117-E: | D161: =IF(Worksheet!$B$43="","",Worksheet!$B$43) -> Max. Load Reading, div. | E161: =IF(Worksheet!$J$24="","",Worksheet!$J$24) -> 7
A162: 160 | B162: =IF(Worksheet!$K$43="","",Worksheet!$K$43) ->  | C162: =IF(Worksheet!$B$21="","",Worksheet!$B$21) -> Performed By Tex-117-E: | D162: =IF(Worksheet!$B$43="","",Worksheet!$B$43) -> Max. Load Reading, div. | E162: =IF(Worksheet!$K$24="","",Worksheet!$K$24) -> 8
A163: 161 | B163: =IF(Worksheet!$D$44="","",Worksheet!$D$44) ->  | C163: =IF(Worksheet!$B$21="","",Worksheet!$B$21) -> Performed By Tex-117-E: | D163: =IF(Worksheet!$B$44="","",Worksheet!$B$44) -> Deformation at Max Load, in. | E163: =IF(Worksheet!$D$24="","",Worksheet!$D$24) -> 1
A164: 162 | B164: =IF(Worksheet!$E$44="","",Worksheet!$E$44) ->  | C164: =IF(Worksheet!$B$21="","",Worksheet!$B$21) -> Performed By Tex-117-E: | D164: =IF(Worksheet!$B$44="","",Worksheet!$B$44) -> Deformation at Max Load, in. | E164: =IF(Worksheet!$E$24="","",Worksheet!$E$24) -> 2
A165: 163 | B165: =IF(Worksheet!$F$44="","",Worksheet!$F$44) ->  | C165: =IF(Worksheet!$B$21="","",Worksheet!$B$21) -> Performed By Tex-117-E: | D165: =IF(Worksheet!$B$44="","",Worksheet!$B$44) -> Deformation at Max Load, in. | E165: =IF(Worksheet!$F$24="","",Worksheet!$F$24) -> 3
A166: 164 | B166: =IF(Worksheet!$G$44="","",Worksheet!$G$44) ->  | C166: =IF(Worksheet!$B$21="","",Worksheet!$B$21) -> Performed By Tex-117-E: | D166: =IF(Worksheet!$B$44="","",Worksheet!$B$44) -> Deformation at Max Load, in. | E166: =IF(Worksheet!$G$24="","",Worksheet!$G$24) -> 4
A167: 165 | B167: =IF(Worksheet!$H$44="","",Worksheet!$H$44) ->  | C167: =IF(Worksheet!$B$21="","",Worksheet!$B$21) -> Performed By Tex-117-E: | D167: =IF(Worksheet!$B$44="","",Worksheet!$B$44) -> Deformation at Max Load, in. | E167: =IF(Worksheet!$H$24="","",Worksheet!$H$24) -> 5
A168: 166 | B168: =IF(Worksheet!$I$44="","",Worksheet!$I$44) ->  | C168: =IF(Worksheet!$B$21="","",Worksheet!$B$21) -> Performed By Tex-117-E: | D168: =IF(Worksheet!$B$44="","",Worksheet!$B$44) -> Deformation at Max Load, in. | E168: =IF(Worksheet!$I$24="","",Worksheet!$I$24) -> 6
A169: 167 | B169: =IF(Worksheet!$J$44="","",Worksheet!$J$44) ->  | C169: =IF(Worksheet!$B$21="","",Worksheet!$B$21) -> Performed By Tex-117-E: | D169: =IF(Worksheet!$B$44="","",Worksheet!$B$44) -> Deformation at Max Load, in. | E169: =IF(Worksheet!$J$24="","",Worksheet!$J$24) -> 7
A170: 168 | B170: =IF(Worksheet!$K$44="","",Worksheet!$K$44) ->  | C170: =IF(Worksheet!$B$21="","",Worksheet!$B$21) -> Performed By Tex-117-E: | D170: =IF(Worksheet!$B$44="","",Worksheet!$B$44) -> Deformation at Max Load, in. | E170: =IF(Worksheet!$K$24="","",Worksheet!$K$24) -> 8
A171: 169 | B171: =IF(Worksheet!$D$45="","",Worksheet!$D$45) ->  | C171: =IF(Worksheet!$B$21="","",Worksheet!$B$21) -> Performed By Tex-117-E: | D171: =IF(Worksheet!$B$45="","",Worksheet!$B$45) -> Uncorrected Stress, psi.: | E171: =IF(Worksheet!$D$24="","",Worksheet!$D$24) -> 1
A172: 170 | B172: =IF(Worksheet!$E$45="","",Worksheet!$E$45) ->  | C172: =IF(Worksheet!$B$21="","",Worksheet!$B$21) -> Performed By Tex-117-E: | D172: =IF(Worksheet!$B$45="","",Worksheet!$B$45) -> Uncorrected Stress, psi.: | E172: =IF(Worksheet!$E$24="","",Worksheet!$E$24) -> 2
A173: 171 | B173: =IF(Worksheet!$F$45="","",Worksheet!$F$45) ->  | C173: =IF(Worksheet!$B$21="","",Worksheet!$B$21) -> Performed By Tex-117-E: | D173: =IF(Worksheet!$B$45="","",Worksheet!$B$45) -> Uncorrected Stress, psi.: | E173: =IF(Worksheet!$F$24="","",Worksheet!$F$24) -> 3
A174: 172 | B174: =IF(Worksheet!$G$45="","",Worksheet!$G$45) ->  | C174: =IF(Worksheet!$B$21="","",Worksheet!$B$21) -> Performed By Tex-117-E: | D174: =IF(Worksheet!$B$45="","",Worksheet!$B$45) -> Uncorrected Stress, psi.: | E174: =IF(Worksheet!$G$24="","",Worksheet!$G$24) -> 4
A175: 173 | B175: =IF(Worksheet!$H$45="","",Worksheet!$H$45) ->  | C175: =IF(Worksheet!$B$21="","",Worksheet!$B$21) -> Performed By Tex-117-E: | D175: =IF(Worksheet!$B$45="","",Worksheet!$B$45) -> Uncorrected Stress, psi.: | E175: =IF(Worksheet!$H$24="","",Worksheet!$H$24) -> 5
A176: 174 | B176: =IF(Worksheet!$I$45="","",Worksheet!$I$45) ->  | C176: =IF(Worksheet!$B$21="","",Worksheet!$B$21) -> Performed By Tex-117-E: | D176: =IF(Worksheet!$B$45="","",Worksheet!$B$45) -> Uncorrected Stress, psi.: | E176: =IF(Worksheet!$I$24="","",Worksheet!$I$24) -> 6
A177: 175 | B177: =IF(Worksheet!$J$45="","",Worksheet!$J$45) ->  | C177: =IF(Worksheet!$B$21="","",Worksheet!$B$21) -> Performed By Tex-117-E: | D177: =IF(Worksheet!$B$45="","",Worksheet!$B$45) -> Uncorrected Stress, psi.: | E177: =IF(Worksheet!$J$24="","",Worksheet!$J$24) -> 7
A178: 176 | B178: =IF(Worksheet!$K$45="","",Worksheet!$K$45) ->  | C178: =IF(Worksheet!$B$21="","",Worksheet!$B$21) -> Performed By Tex-117-E: | D178: =IF(Worksheet!$B$45="","",Worksheet!$B$45) -> Uncorrected Stress, psi.: | E178: =IF(Worksheet!$K$24="","",Worksheet!$K$24) -> 8
A179: 177 | B179: =IF(Worksheet!$D$46="","",Worksheet!$D$46) ->  | C179: =IF(Worksheet!$B$21="","",Worksheet!$B$21) -> Performed By Tex-117-E: | D179: =IF(Worksheet!$B$46="","",Worksheet!$B$46) -> % Strain , in./in.: | E179: =IF(Worksheet!$D$24="","",Worksheet!$D$24) -> 1
A180: 178 | B180: =IF(Worksheet!$E$46="","",Worksheet!$E$46) ->  | C180: =IF(Worksheet!$B$21="","",Worksheet!$B$21) -> Performed By Tex-117-E: | D180: =IF(Worksheet!$B$46="","",Worksheet!$B$46) -> % Strain , in./in.: | E180: =IF(Worksheet!$E$24="","",Worksheet!$E$24) -> 2
A181: 179 | B181: =IF(Worksheet!$F$46="","",Worksheet!$F$46) ->  | C181: =IF(Worksheet!$B$21="","",Worksheet!$B$21) -> Performed By Tex-117-E: | D181: =IF(Worksheet!$B$46="","",Worksheet!$B$46) -> % Strain , in./in.: | E181: =IF(Worksheet!$F$24="","",Worksheet!$F$24) -> 3
A182: 180 | B182: =IF(Worksheet!$G$46="","",Worksheet!$G$46) ->  | C182: =IF(Worksheet!$B$21="","",Worksheet!$B$21) -> Performed By Tex-117-E: | D182: =IF(Worksheet!$B$46="","",Worksheet!$B$46) -> % Strain , in./in.: | E182: =IF(Worksheet!$G$24="","",Worksheet!$G$24) -> 4
A183: 181 | B183: =IF(Worksheet!$H$46="","",Worksheet!$H$46) ->  | C183: =IF(Worksheet!$B$21="","",Worksheet!$B$21) -> Performed By Tex-117-E: | D183: =IF(Worksheet!$B$46="","",Worksheet!$B$46) -> % Strain , in./in.: | E183: =IF(Worksheet!$H$24="","",Worksheet!$H$24) -> 5
A184: 182 | B184: =IF(Worksheet!$I$46="","",Worksheet!$I$46) ->  | C184: =IF(Worksheet!$B$21="","",Worksheet!$B$21) -> Performed By Tex-117-E: | D184: =IF(Worksheet!$B$46="","",Worksheet!$B$46) -> % Strain , in./in.: | E184: =IF(Worksheet!$I$24="","",Worksheet!$I$24) -> 6
A185: 183 | B185: =IF(Worksheet!$J$46="","",Worksheet!$J$46) ->  | C185: =IF(Worksheet!$B$21="","",Worksheet!$B$21) -> Performed By Tex-117-E: | D185: =IF(Worksheet!$B$46="","",Worksheet!$B$46) -> % Strain , in./in.: | E185: =IF(Worksheet!$J$24="","",Worksheet!$J$24) -> 7
A186: 184 | B186: =IF(Worksheet!$K$46="","",Worksheet!$K$46) ->  | C186: =IF(Worksheet!$B$21="","",Worksheet!$B$21) -> Performed By Tex-117-E: | D186: =IF(Worksheet!$B$46="","",Worksheet!$B$46) -> % Strain , in./in.: | E186: =IF(Worksheet!$K$24="","",Worksheet!$K$24) -> 8
A187: 185 | B187: =IF(Worksheet!$D$47="","",Worksheet!$D$47) ->  | C187: =IF(Worksheet!$B$21="","",Worksheet!$B$21) -> Performed By Tex-117-E: | D187: =IF(Worksheet!$B$47="","",Worksheet!$B$47) -> I-Strain, in./in.: | E187: =IF(Worksheet!$D$24="","",Worksheet!$D$24) -> 1
A188: 186 | B188: =IF(Worksheet!$E$47="","",Worksheet!$E$47) ->  | C188: =IF(Worksheet!$B$21="","",Worksheet!$B$21) -> Performed By Tex-117-E: | D188: =IF(Worksheet!$B$47="","",Worksheet!$B$47) -> I-Strain, in./in.: | E188: =IF(Worksheet!$E$24="","",Worksheet!$E$24) -> 2
A189: 187 | B189: =IF(Worksheet!$F$47="","",Worksheet!$F$47) ->  | C189: =IF(Worksheet!$B$21="","",Worksheet!$B$21) -> Performed By Tex-117-E: | D189: =IF(Worksheet!$B$47="","",Worksheet!$B$47) -> I-Strain, in./in.: | E189: =IF(Worksheet!$F$24="","",Worksheet!$F$24) -> 3
A190: 188 | B190: =IF(Worksheet!$G$47="","",Worksheet!$G$47) ->  | C190: =IF(Worksheet!$B$21="","",Worksheet!$B$21) -> Performed By Tex-117-E: | D190: =IF(Worksheet!$B$47="","",Worksheet!$B$47) -> I-Strain, in./in.: | E190: =IF(Worksheet!$G$24="","",Worksheet!$G$24) -> 4
A191: 189 | B191: =IF(Worksheet!$H$47="","",Worksheet!$H$47) ->  | C191: =IF(Worksheet!$B$21="","",Worksheet!$B$21) -> Performed By Tex-117-E: | D191: =IF(Worksheet!$B$47="","",Worksheet!$B$47) -> I-Strain, in./in.: | E191: =IF(Worksheet!$H$24="","",Worksheet!$H$24) -> 5
A192: 190 | B192: =IF(Worksheet!$I$47="","",Worksheet!$I$47) ->  | C192: =IF(Worksheet!$B$21="","",Worksheet!$B$21) -> Performed By Tex-117-E: | D192: =IF(Worksheet!$B$47="","",Worksheet!$B$47) -> I-Strain, in./in.: | E192: =IF(Worksheet!$I$24="","",Worksheet!$I$24) -> 6
A193: 191 | B193: =IF(Worksheet!$J$47="","",Worksheet!$J$47) ->  | C193: =IF(Worksheet!$B$21="","",Worksheet!$B$21) -> Performed By Tex-117-E: | D193: =IF(Worksheet!$B$47="","",Worksheet!$B$47) -> I-Strain, in./in.: | E193: =IF(Worksheet!$J$24="","",Worksheet!$J$24) -> 7
A194: 192 | B194: =IF(Worksheet!$K$47="","",Worksheet!$K$47) ->  | C194: =IF(Worksheet!$B$21="","",Worksheet!$B$21) -> Performed By Tex-117-E: | D194: =IF(Worksheet!$B$47="","",Worksheet!$B$47) -> I-Strain, in./in.: | E194: =IF(Worksheet!$K$24="","",Worksheet!$K$24) -> 8
A195: 193 | B195: =IF(Worksheet!$D$48="","",Worksheet!$D$48) ->  | C195: =IF(Worksheet!$B$21="","",Worksheet!$B$21) -> Performed By Tex-117-E: | D195: =IF(Worksheet!$B$48="","",Worksheet!$B$48) -> Corrected Stress, psi.: | E195: =IF(Worksheet!$D$24="","",Worksheet!$D$24) -> 1
A196: 194 | B196: =IF(Worksheet!$E$48="","",Worksheet!$E$48) ->  | C196: =IF(Worksheet!$B$21="","",Worksheet!$B$21) -> Performed By Tex-117-E: | D196: =IF(Worksheet!$B$48="","",Worksheet!$B$48) -> Corrected Stress, psi.: | E196: =IF(Worksheet!$E$24="","",Worksheet!$E$24) -> 2
A197: 195 | B197: =IF(Worksheet!$F$48="","",Worksheet!$F$48) ->  | C197: =IF(Worksheet!$B$21="","",Worksheet!$B$21) -> Performed By Tex-117-E: | D197: =IF(Worksheet!$B$48="","",Worksheet!$B$48) -> Corrected Stress, psi.: | E197: =IF(Worksheet!$F$24="","",Worksheet!$F$24) -> 3
A198: 196 | B198: =IF(Worksheet!$G$48="","",Worksheet!$G$48) ->  | C198: =IF(Worksheet!$B$21="","",Worksheet!$B$21) -> Performed By Tex-117-E: | D198: =IF(Worksheet!$B$48="","",Worksheet!$B$48) -> Corrected Stress, psi.: | E198: =IF(Worksheet!$G$24="","",Worksheet!$G$24) -> 4
A199: 197 | B199: =IF(Worksheet!$H$48="","",Worksheet!$H$48) ->  | C199: =IF(Worksheet!$B$21="","",Worksheet!$B$21) -> Performed By Tex-117-E: | D199: =IF(Worksheet!$B$48="","",Worksheet!$B$48) -> Corrected Stress, psi.: | E199: =IF(Worksheet!$H$24="","",Worksheet!$H$24) -> 5
A200: 198 | B200: =IF(Worksheet!$I$48="","",Worksheet!$I$48) ->  | C200: =IF(Worksheet!$B$21="","",Worksheet!$B$21) -> Performed By Tex-117-E: | D200: =IF(Worksheet!$B$48="","",Worksheet!$B$48) -> Corrected Stress, psi.: | E200: =IF(Worksheet!$I$24="","",Worksheet!$I$24) -> 6
... 104 more rows

Sheet Revisions (hidden)
A1: Date | B1: Changes | C1: By | D1: Comments
A2: 2005-08-05 | B2: AuthorizePersion from B61 to B63, Authorized date from E61 to E63 | C2: Joe Liu
